Workbook

Sheet Cover

Sheet Summary
A4: =Stats!A26 -> Year | B4: Volume requiring replacement by 2024 (km)
A5: =Stats!A27 -> Upper bound | B5: =Stats!H27 -> 49.94615935
A6: =Stats!A28 -> Expected value | B6: =Stats!H28 -> 37.79020585
A7: =Stats!A29 -> Lower bound | B7: =Stats!H29 -> 25.63425234

Sheet Calc Trend ->
A3: Notes:
A4: This set of tabs calculates the historical rate of growth of cable faults in the northern suburbs.
A5: Due to recording practices, the cable faults were allocated to the associated equipment item, ie, as switch or transformer. Hence those items are included in the trend data
A6: The step increase in outages observed in 2007 us used as the point in time to determine the upper and lower bounds of the failure rates to account for potentially changed recording practices or an actual significant increase in cable failures

Sheet Trend Pivot
A1: Northern Suburbs | B1: (Multiple Items)
A2: Failed Equipment | B2: (Multiple Items)
A3: Voltage Level | B3: (Multiple Items)
A4: Planned Or Unplanned | B4: Unplanned
A5: Type Of Interruption | B5: Sustained Interruption
A6: Failure Cause Code | B6: (Multiple Items)
A8: Count of Outage Duration [minutes] | B8: Column Labels
B9: 1997 | C9: 1998 | D9: 1999 | E9: 2000 | F9: 2001 | G9: 2002 | H9: 2003 | I9: 2004 | J9: 2005 | K9: 2006 | L9: 2007 | M9: 2008 | N9: 2009 | O9: 2010 | P9: 2011 | Q9: 2012 | R9: 2013 | S9: 2014 | T9: 2015 | U9: 2016 | V9: 2017 | W9: Grand Total
A10: 11BE01 LEANYER | B10: 1 | C10: 2 | D10: 3 | E10: 1 | F10: 2 | G10: 2 | H10: 1 | I10: 1 | J10: 1 | K10: 2 | L10: 1 | M10: 1 | R10: 2 | S10: 3 | T10: 3 | W10: 26
A11: 11BE04 MCMILLANS | I11: 1 | L11: 2 | R11: 3 | S11: 1 | T11: 1 | W11: 8
A12: 11BE06 KARAMA 1 | B12: 1 | E12: 2 | G12: 1 | H12: 2 | K12: 1 | M12: 2 | N12: 2 | O12: 1 | P12: 1 | R12: 2 | T12: 1 | U12: 3 | V12: 1 | W12: 20
A13: 11BE10 KARAMA 2 | B13: 1 | E13: 3 | F13: 1 | G13: 1 | H13: 1 | I13: 1 | J13: 1 | L13: 2 | N13: 1 | O13: 3 | P13: 3 | R13: 3 | S13: 1 | T13: 1 | W13: 23
A14: 11BE16 ANULA | E14: 2 | G14: 1 | H14: 3 | J14: 1 | L14: 1 | M14: 3 | N14: 2 | O14: 2 | P14: 1 | R14: 1 | S14: 1 | T14: 1 | W14: 19
A15: 11CA00 NIGHTCLIFF 1 | M15: 2 | Q15: 1 | S15: 2 | U15: 1 | W15: 6
A16: 11CA03 BRADSHAW | L16: 1 | N16: 3 | P16: 2 | R16: 1 | T16: 1 | W16: 8
A17: 11CA04 UNIVERSITY | M17: 2 | N17: 2 | U17: 1 | W17: 5
A18: 11CA06 AIRPORT | T18: 3 | W18: 3
A19: 11CA07 JINGILI | N19: 1 | W19: 1
A20: 11CA08 NTHLAKES | T20: 1 | U20: 2 | W20: 3
A21: 11CA10 MILLNER | Q21: 1 | S21: 2 | W21: 3
A22: 11CA12 MARRARA | P22: 1 | S22: 1 | U22: 1 | W22: 3
A23: 11CA13 WANGURI | L23: 1 | N23: 3 | O23: 3 | P23: 2 | Q23: 1 | R23: 1 | W23: 11
A24: 11CA16 NAKARA | S24: 2 | W24: 2
A25: 11CA17 CAS SQUARE | O25: 1 | P25: 1 | W25: 2
A26: 11CA19 CAS VILLAGE | M26: 1 | N26: 2 | R26: 1 | U26: 1 | W26: 5
A27: 11CA21 NIGHTCLIFF 2 | S27: 1 | U27: 1 | W27: 2
A28: 11CA23 MOIL | M28: 1 | N28: 1 | R28: 1 | S28: 1 | W28: 4
A29: 11CA24 PARER | O29: 1 | Q29: 1 | R29: 4 | S29: 2 | W29: 8
A30: 11CA25 BRINKIN | M30: 3 | N30: 3 | P30: 1 | S30: 3 | U30: 1 | W30: 11
A31: 11LE03 LYONS 1 | V31: 5 | W31: 5
A32: 11LE12 MUIRHEAD | U32: 1 | W32: 1
A33: 11WN22 LUDMILLA | S33: 1 | W33: 1
A34: Grand Total | B34: 3 | C34: 2 | D34: 3 | E34: 8 | F34: 3 | G34: 5 | H34: 7 | I34: 3 | J34: 3 | K34: 3 | L34: 8 | M34: 15 | N34: 20 | O34: 11 | P34: 12 | Q34: 4 | R34: 19 | S34: 21 | T34: 12 | U34: 12 | V34: 6 | W34: 180
A38: Grand Total | B38: =(B9)*1 -> 1997 | C38: =(C9)*1 -> 1998 | D38: =(D9)*1 -> 1999 | E38: =(E9)*1 -> 2000 | F38: =(F9)*1 -> 2001 | G38: =(G9)*1 -> 2002 | H38: =(H9)*1 -> 2003 | I38: =(I9)*1 -> 2004 | J38: =(J9)*1 -> 2005 | K38: =(K9)*1 -> 2006 | L38: =(L9)*1 -> 2007 | M38: =(M9)*1 -> 2008 | N38: =(N9)*1 -> 2009 | O38: =(O9)*1 -> 2010 | P38: =(P9)*1 -> 2011 | Q38: =(Q9)*1 -> 2012 | R38: =(R9)*1 -> 2013 | S38: =(S9)*1 -> 2014 | T38: =(T9)*1 -> 2015 | U38: =(U9)*1 -> 2016 | V38: =(V9)*1 -> 2017 | W38: 2018
A39: Number of unplanned eqt. failures | M39: =VLOOKUP($A$38,$A$7:$V$35,M38-1995,FALSE) -> 15 | N39: =VLOOKUP($A$38,$A$7:$V$35,N38-1995,FALSE) -> 20 | O39: =VLOOKUP($A$38,$A$7:$V$35,O38-1995,FALSE) -> 11 | P39: =VLOOKUP($A$38,$A$7:$V$35,P38-1995,FALSE) -> 12 | Q39: =VLOOKUP($A$38,$A$7:$V$35,Q38-1995,FALSE) -> 4 | R39: =VLOOKUP($A$38,$A$7:$V$35,R38-1995,FALSE) -> 19 | S39: =VLOOKUP($A$38,$A$7:$V$35,S38-1995,FALSE) -> 21 | T39: =VLOOKUP($A$38,$A$7:$V$35,T38-1995,FALSE) -> 12 | U39: =VLOOKUP($A$38,$A$7:$V$35,U38-1995,FALSE) -> 12 | V39: =VLOOKUP($A$38,$A$7:$V$35,V38-1995,FALSE)+7 -> 13 | W39: 18
A40: Number of unplanned interruptions | B40: =VLOOKUP($A$38,$A$7:$V$35,B38-1995,FALSE) -> 3 | C40: =VLOOKUP($A$38,$A$7:$V$35,C38-1995,FALSE) -> 2 | D40: =VLOOKUP($A$38,$A$7:$V$35,D38-1995,FALSE) -> 3 | E40: =VLOOKUP($A$38,$A$7:$V$35,E38-1995,FALSE) -> 8 | F40: =VLOOKUP($A$38,$A$7:$V$35,F38-1995,FALSE) -> 3 | G40: =VLOOKUP($A$38,$A$7:$V$35,G38-1995,FALSE) -> 5 | H40: =VLOOKUP($A$38,$A$7:$V$35,H38-1995,FALSE) -> 7 | I40: =VLOOKUP($A$38,$A$7:$V$35,I38-1995,FALSE) -> 3 | J40: =VLOOKUP($A$38,$A$7:$V$35,J38-1995,FALSE) -> 3 | K40: =VLOOKUP($A$38,$A$7:$V$35,K38-1995,FALSE) -> 3 | L40: =VLOOKUP($A$38,$A$7:$V$35,L38-1995,FALSE) -> 8
A41: Number of unplanned interruptions | B41: =VLOOKUP($A$38,$A$7:$V$35,B38-1995,FALSE) -> 3 | C41: =VLOOKUP($A$38,$A$7:$V$35,C38-1995,FALSE) -> 2 | D41: =VLOOKUP($A$38,$A$7:$V$35,D38-1995,FALSE) -> 3 | E41: =VLOOKUP($A$38,$A$7:$V$35,E38-1995,FALSE) -> 8 | F41: =VLOOKUP($A$38,$A$7:$V$35,F38-1995,FALSE) -> 3 | G41: =VLOOKUP($A$38,$A$7:$V$35,G38-1995,FALSE) -> 5 | H41: =VLOOKUP($A$38,$A$7:$V$35,H38-1995,FALSE) -> 7 | I41: =VLOOKUP($A$38,$A$7:$V$35,I38-1995,FALSE) -> 3 | J41: =VLOOKUP($A$38,$A$7:$V$35,J38-1995,FALSE) -> 3 | K41: =VLOOKUP($A$38,$A$7:$V$35,K38-1995,FALSE) -> 3 | L41: =VLOOKUP($A$38,$A$7:$V$35,L38-1995,FALSE) -> 8 | M41: =VLOOKUP($A$38,$A$7:$V$35,M38-1995,FALSE) -> 15 | N41: =VLOOKUP($A$38,$A$7:$V$35,N38-1995,FALSE) -> 20 | O41: =VLOOKUP($A$38,$A$7:$V$35,O38-1995,FALSE) -> 11 | P41: =VLOOKUP($A$38,$A$7:$V$35,P38-1995,FALSE) -> 12 | Q41: =VLOOKUP($A$38,$A$7:$V$35,Q38-1995,FALSE) -> 4 | R41: =VLOOKUP($A$38,$A$7:$V$35,R38-1995,FALSE) -> 19 | S41: =VLOOKUP($A$38,$A$7:$V$35,S38-1995,FALSE) -> 21 | T41: =VLOOKUP($A$38,$A$7:$V$35,T38-1995,FALSE) -> 12 | U41: =VLOOKUP($A$38,$A$7:$V$35,U38-1995,FALSE) -> 12 | V41: =VLOOKUP($A$38,$A$7:$V$35,V38-1995,FALSE)+7 -> 13 | W41: 18
V42: new data in 2017 and 2018 from cable testing data
A60: From Trend Line:
A61: Rate of increase (gradient) - high growth | B61: =LINEST(B41:W41) -> 0.7108977979 | C61: 1.142857143
A62: Rate of increase (gradient) - low growth | B62: =LINEST(M39:W39) -> 0.06363636364 | C62: 13.89090909
A63: Average | B63: =AVERAGE(B61:B62) -> 0.3872670807 | C63: =AVERAGE(C61:C62) -> 7.516883117

Sheet Calc Cable Stats ->
A3: Notes:
A4: This set of Tabs sets out the statistics based on the cables tests undertaken to date and demonstrates how the expected volume of 37.8km of cable requiring replacement has been calculated
A5: It also shows the forecast failure rate based on historical outages, and excluding growth due to increased deteioration, based on various replacement rate assumptions.

Sheet Stats
A2: Cable length Stat | B2: Value
A3: Mean | B3: =AVERAGE('XPLE Cables'!I:I) -> 160.1784039
A4: Median | B4: =MEDIAN('XPLE Cables'!I:I) -> 102.86
A5: Total | B5: =SUM('XPLE Cables'!I:I) -> 136311.8217
A6: Segments | B6: =COUNT('XPLE Cables'!I2:I852) -> 851
A7: Total Nth Suburbs Cable sections | B7: 851
A8: Total Nth Suburbs Cable length (counting single core cables individually, not route length) | B8: =B5 -> 136311.8217
A9: Average length per section | B9: =B3 -> 160.1784039
A11: Testing statistics
A12: Total sections tested | B12: 173
A13: Total defects/failed tests found | B13: 42
A14: Finite population corretion factor | B14: =SQRT((B7-B12)/(B7-1)) -> 0.8931108883
A15: 95% confidence level factor (standard normal distribution) | B15: 1.96
A16: Percentage | B16: =B13/B12 -> 0.2427745665
A17: Margin of error | B17: =SQRT((1/B12)*B16*(1-B16)*B14)*B15 -> 0.06038094444
D18: Cable_Condition_Assessment_v8_ doform RAW data 2016-18
D19: 2017 18 Cable_Return_to_Service_v8 doform data RAW
A20: Confidence interval | B20: Percentage | C20: # Segments | D20: Length (m)
A21: Lower bound | B21: =B22-B17 -> 0.182393622 | C21: =$B7*B21 -> 155.2169723 | D21: =$B9*C21 -> 24862.40689
A22: Expected value | B22: =B16 -> 0.2427745665 | C22: =$B7*B22 -> 206.6011561 | D22: =$B9*C22 -> 33093.04342
A23: Upper bound | B23: =B22+B17 -> 0.3031555109 | C23: =$B7*B23 -> 257.9853398 | D23: =$B9*C23 -> 41323.67996
A25: Deterioration rate forecast based on historical fault rates | D25: 2019-2024 Regualtory period (shown as financial year)
A26: Year | B26: 2018 | C26: =B26+1 -> 2019 | D26: =C26+1 -> 2020 | E26: 2021 | F26: 2022 | G26: 2023 | H26: =G26+1 -> 2024 | I26: 2025
A27: Upper bound | B27: =D23/1000 -> 41.32367996 | C27: =B27+(C$26*$B32/1000) -> 42.75898261 | D27: 44.19499616 | E27: 45.63172061 | F27: 47.06915596 | G27: 48.50730221 | H27: 49.94615935 | I27: 51.38572739
A28: Expected value | B28: =D22/1000 -> 33.09304342 | C28: 33.87493566 | D28: 34.65721516 | E28: 35.43988193 | F28: 36.22293597 | G28: 37.00637727 | H28: 37.79020585 | I28: 38.57442168
A29: Lower bound | B29: =D21/1000 -> 24.86240689 | C29: 24.99088871 | D29: 25.11943416 | E29: 25.24804325 | F29: 25.37671598 | G29: 25.50545234 | H29: 25.63425234 | I29: 25.76311598
A31: Rate of increase | B31: Gradient of fault rate increase
A32: High | B32: ='Trend Pivot'!B61 -> 0.7108977979
A33: Mid | B33: =(B32+B34)/2 -> 0.3872670807
A34: Low | B34: ='Trend Pivot'!B62 -> 0.06363636364

Sheet _@RISKFitInformation (hidden)
A1: Created By Version | B1: 7.0.0
A2: Required Version | B2: 5.0.0
A3: Recommended Version | B3: 5.0.0
A4: Modified By Version | B4: 7.0.0
A9: Count | B9: 1
A10: GUID | B10: Name | C10: Range | D10: CRC | E10: Options | F10: Comp. Graph Serialization | G10: PP Graph Serialization | H10: QQ Graph Serialization | I10: Unsued | J10: Fixed Params | K10: Bootstrap Options | L10: BootstrapParamGraphSerialization | M10: BatchFit Options | N10: BootstrapGOFGraphSerialization | O10: FitSelector
A11: FIT_A3802_D2A36 | B11: Dataset 1 | C11: ='MC Output'!$D$2:$D$10001 -> 31462.07841 | D11: 0 | E11: F1 0 0 -1E+300 1E+300 1 0 0 0 0 1 23 BetaGeneral Binomial Expon ExtValue ExtValueMin Gamma Geomet IntUniform InvGauss Laplace Levy Logistic LogLogistic Lognorm NegBin Normal Pareto Pearson5 Pearson6 Poisson Triang Uniform Weibull 0 1 -1 1 0 1 0 0 0 | F11: GF1_rK0qDwEADwDKAQwjACYANACAAJQAlQCjALEApAHGAcABKgD//wAAAAAAAQQAAAAAAAAAAAEcRml0IENvbXBhcmlzb24gZm9yIERhdGFzZXQgMQEqUmlza0JldGFHZW5lcmFsKDUuMjE0Niw4LjM5NjMsMTYwNTIsNjAzNzgpAQEQAAIAAQpTdGF0aXN0aWNzAwEBAP8BAQEBAQABAQEABAAAAAEBAQEBAAEBAQAEAAAACtAAAd8AAPQAAAoBACABADYBAEwBAGIBAHgBAI4BAA0ABUlucHV0AAAlAQECABMAC0JldGFHZW5lcmFsAAEvAQACABQADFVudXNlZCBDdXJ2ZQACTwEAAgAUAAxVbnVzZWQgQ3VydmUAA4wBAAIAFAAMVW51c2VkIEN1cnZlAARMAQACABQADFVudXNlZCBDdXJ2ZQAFOQEAAgAUAAxVbnVzZWQgQ3VydmUABk4BAAIAFAAMVW51c2VkIEN1cnZlAAcjAQACABQADFVudXNlZCBDdXJ2ZQAIKQEAAgAUAAxVbnVzZWQgQ3VydmUACWABAAIArAG2AQEBAgGamZmZmZmpPwAAZmZmZmZm7j8AAAUAAQEBAAEBAQA= | J11: 0 8 | K11: F1 0 1000 .95 | O11: 4 | P11: TRUE

Sheet Forecast failure rates
A1: Year | B1: 2019 | C1: =B1+1 -> 2020 | D1: =C1+1 -> 2021 | E1: 2022 | F1: 2023 | G1: 2024 | H1: 2025 | I1: 2026 | J1: 2027 | K1: 2028 | L1: 2029 | M1: 2030 | N1: 2031 | O1: 2032 | P1: 2033 | Q1: =P1+1 -> 2034
A2: Assuming averagew growth rate
A3: Gradient | B3: ='Trend Pivot'!B63 -> 0.3872670807
A4: Offset | B4: ='Trend Pivot'!C63 -> 7.516883117
A6: No repex | B6: =(B1-1997)*$B$3+$B$4 -> 16.03675889 | C6: =(C1-1997)*$B$3+$B$4 -> 16.42402597 | D6: 16.81129305 | E6: 17.19856014 | F6: 17.58582722 | G6: 17.9730943 | H6: 18.36036138 | I6: 18.74762846 | J6: 19.13489554 | K6: 19.52216262 | L6: 19.9094297 | M6: 20.29669678 | N6: 20.68396386 | O6: 21.07123094 | P6: 21.45849802 | Q6: 21.8457651
A7: Cable installed | B7: 103
A8: Replacement period | B8: 15
A9: Annual replacement | C9: =B7/B8 -> 6.866666667 | D9: =C9 -> 6.866666667 | E9: 6.866666667 | F9: 6.866666667 | G9: 6.866666667 | H9: 6.866666667 | I9: 6.866666667 | J9: 6.866666667 | K9: 6.866666667 | L9: 6.866666667 | M9: 6.866666667 | N9: 6.866666667 | O9: 6.866666667 | P9: 6.866666667 | Q9: =P9 -> 6.866666667
A10: Remaining cable | B10: =B7 -> 103 | C10: =B10-C9 -> 96.13333333 | D10: =C10-D9 -> 89.26666667 | E10: =D10-E9 -> 82.4 | F10: 75.53333333 | G10: 68.66666667 | H10: 61.8 | I10: 54.93333333 | J10: 48.06666667 | K10: 41.2 | L10: 34.33333333 | M10: 27.46666667 | N10: 20.6 | O10: 13.73333333 | P10: 6.866666667 | Q10: 3.019806627e-14
A11: Pro-rata failures (15 yr) | C11: =C10/$B$10*C6 -> 15.32909091 | D11: 14.56978731 | E11: 13.75884811 | F11: 12.89627329 | G11: 11.98206286 | H11: 11.01621683 | I11: 9.998735178 | J11: 8.929617918 | K11: 7.808865048 | L11: 6.636476567 | M11: 5.412452475 | N11: 4.136792772 | O11: 2.809497459 | P11: 1.430566535 | Q11: 6.404853032e-15
A13: Replacement period | B13: 10
A14: Annual replacement | C14: =B7/B13 -> 10.3 | D14: =C14 -> 10.3 | E14: 10.3 | F14: 10.3 | G14: 10.3 | H14: 10.3 | I14: 10.3 | J14: 10.3 | K14: 10.3 | L14: 10.3 | M14: 0 | N14: 0 | O14: 0 | P14: 0 | Q14: 0
A15: Remaining cable | B15: =B7 -> 103 | C15: =B15-C14 -> 92.7 | D15: =C15-D14 -> 82.4 | E15: =D15-E14 -> 72.1 | F15: =E15-F14 -> 61.8 | G15: =F15-G14 -> 51.5 | H15: =G15-H14 -> 41.2 | I15: =H15-I14 -> 30.9 | J15: =I15-J14 -> 20.6 | K15: =J15-K14 -> 10.3 | L15: =K15-L14 -> 1.421085472e-14 | M15: =L15-M14 -> 1.421085472e-14 | N15: =M15-N14 -> 1.421085472e-14 | O15: =N15-O14 -> 1.421085472e-14 | P15: =O15-P14 -> 1.421085472e-14 | Q15: =P15-Q14 -> 1.421085472e-14
A16: Pro-rata failures (10 yr) | C16: =C15/$B$15*C6 -> 14.78162338 | D16: 13.44903444 | E16: 12.03899209 | F16: 10.55149633 | G16: 8.986547149 | H16: 7.344144551 | I16: 5.624288538 | J16: 3.826979108 | K16: 1.952216262 | L16: 2.74689333e-15 | M16: 2.800324361e-15 | N16: 2.853755392e-15 | O16: 2.907186423e-15 | P16: 2.960617455e-15 | Q16: 3.014048486e-15
A18: Replacement Volume | B18: 7.8
A19: Remaining cable | B19: 103 | C19: =B19-C20 -> 95.2 | D19: =C19-D20 -> 87.4 | E19: 79.6 | F19: 71.8 | G19: 64 | H19: 56.2 | I19: 48.4 | J19: 40.6 | K19: 32.8 | L19: 25 | M19: 17.2 | N19: 9.4 | O19: 1.6 | P19: 2.353672812e-14 | Q19: 0
A20: Annual replacement | C20: =$B$18 -> 7.8 | D20: 7.8 | E20: 7.8 | F20: 7.8 | G20: 7.8 | H20: 7.8 | I20: 7.8 | J20: 7.8 | K20: 7.8 | L20: 7.8 | M20: 7.8 | N20: 7.8 | O20: 7.8 | P20: 1.6 | Q20: 0
A21: Pro-rata failures (10 yr) | C21: =C19/$B$19*C6 -> 15.18026478 | D21: =D19/$B$19*D6 -> 14.26511663 | E21: 13.29131443 | F21: 12.2588582 | G21: 11.16774791 | H21: 10.01798359 | I21: 8.809565217 | J21: 7.542492805 | K21: 6.216766349 | L21: 4.83238585 | M21: 3.389351307 | N21: 1.887662721 | O21: 0.3273200923 | P21: 4.903522659e-15 | Q21: 0

Sheet Monte Carlo ->
A3: Notes:
A4: This set of tabs and Macro do a Monte Carlo analysis to identify the most freqent number of cables - by length - that would require replacement.
A5: The MC uses the stats calcualted for the cables as well as selecting actual cables lengths from the existing cable fleet to determine the distribution of cables that currently need replacement across the fleet.

Sheet Frequency of cable length
A1: Bin | B1: Frequency | D1: Bin | E1: Frequency (#) | F1: Frequency (km)
A2: 0 | B2: =FREQUENCY('XPLE Cables'!$I$2:$I$852,'Frequency of cable length'!A2:A8) -> 0 | D2: 0 | E2: =FREQUENCY('XPLE Cables'!$I$2:$I$852,'Frequency of cable length'!D2:D172) -> 0 | F2: 0
A3: 1 | B3: 52 | D3: 10 | E3: 293 | F3: =SUMIFS('XPLE Cables'!$I:$I,'XPLE Cables'!$I:$I,"<"&D3,'XPLE Cables'!$I:$I,">"&D2) -> 620.750844
A4: 10 | B4: 241 | D4: =D3+10 -> 20 | E4: 18 | F4: =SUMIFS('XPLE Cables'!$I:$I,'XPLE Cables'!$I:$I,"<"&D4,'XPLE Cables'!$I:$I,">"&D3) -> 275.0358452
A5: 100 | B5: 122 | D5: =D4+10 -> 30 | E5: 11 | F5: =SUMIFS('XPLE Cables'!$I:$I,'XPLE Cables'!$I:$I,"<"&D5,'XPLE Cables'!$I:$I,">"&D4) -> 294.9209644
A6: 1000 | B6: 428 | D6: 40 | E6: 11 | F6: =SUMIFS('XPLE Cables'!$I:$I,'XPLE Cables'!$I:$I,"<"&D6,'XPLE Cables'!$I:$I,">"&D5) -> 369.2569083
A7: 10000 | B7: 8 | D7: 50 | E7: 7 | F7: =SUMIFS('XPLE Cables'!$I:$I,'XPLE Cables'!$I:$I,"<"&D7,'XPLE Cables'!$I:$I,">"&D6) -> 315.4309566
B8: 0 | D8: 60 | E8: 14 | F8: =SUMIFS('XPLE Cables'!$I:$I,'XPLE Cables'!$I:$I,"<"&D8,'XPLE Cables'!$I:$I,">"&D7) -> 771.6374391
D9: 70 | E9: 11 | F9: =SUMIFS('XPLE Cables'!$I:$I,'XPLE Cables'!$I:$I,"<"&D9,'XPLE Cables'!$I:$I,">"&D8) -> 729.1116314
D10: 80 | E10: 9 | F10: =SUMIFS('XPLE Cables'!$I:$I,'XPLE Cables'!$I:$I,"<"&D10,'XPLE Cables'!$I:$I,">"&D9) -> 672.4782928
D11: 90 | E11: 16 | F11: =SUMIFS('XPLE Cables'!$I:$I,'XPLE Cables'!$I:$I,"<"&D11,'XPLE Cables'!$I:$I,">"&D10) -> 1365.01
D12: 100 | E12: 25 | F12: =SUMIFS('XPLE Cables'!$I:$I,'XPLE Cables'!$I:$I,"<"&D12,'XPLE Cables'!$I:$I,">"&D11) -> 2286.565608
D13: 110 | E13: 29 | F13: =SUMIFS('XPLE Cables'!$I:$I,'XPLE Cables'!$I:$I,"<"&D13,'XPLE Cables'!$I:$I,">"&D12) -> 3039.650232
D14: 120 | E14: 26 | F14: =SUMIFS('XPLE Cables'!$I:$I,'XPLE Cables'!$I:$I,"<"&D14,'XPLE Cables'!$I:$I,">"&D13) -> 3004.917826
D15: 130 | E15: 20 | F15: =SUMIFS('XPLE Cables'!$I:$I,'XPLE Cables'!$I:$I,"<"&D15,'XPLE Cables'!$I:$I,">"&D14) -> 2498.761684
D16: 140 | E16: 16 | F16: =SUMIFS('XPLE Cables'!$I:$I,'XPLE Cables'!$I:$I,"<"&D16,'XPLE Cables'!$I:$I,">"&D15) -> 2157.772182
D17: 150 | E17: 23 | F17: =SUMIFS('XPLE Cables'!$I:$I,'XPLE Cables'!$I:$I,"<"&D17,'XPLE Cables'!$I:$I,">"&D16) -> 3346.201483
D18: 160 | E18: 21 | F18: =SUMIFS('XPLE Cables'!$I:$I,'XPLE Cables'!$I:$I,"<"&D18,'XPLE Cables'!$I:$I,">"&D17) -> 3255.646175
D19: 170 | E19: 9 | F19: =SUMIFS('XPLE Cables'!$I:$I,'XPLE Cables'!$I:$I,"<"&D19,'XPLE Cables'!$I:$I,">"&D18) -> 1484.083483
D20: 180 | E20: 9 | F20: =SUMIFS('XPLE Cables'!$I:$I,'XPLE Cables'!$I:$I,"<"&D20,'XPLE Cables'!$I:$I,">"&D19) -> 1571.467884
D21: 190 | E21: 12 | F21: =SUMIFS('XPLE Cables'!$I:$I,'XPLE Cables'!$I:$I,"<"&D21,'XPLE Cables'!$I:$I,">"&D20) -> 2212.464808
D22: 200 | E22: 14 | F22: =SUMIFS('XPLE Cables'!$I:$I,'XPLE Cables'!$I:$I,"<"&D22,'XPLE Cables'!$I:$I,">"&D21) -> 2744.366145
D23: 210 | E23: 11 | F23: =SUMIFS('XPLE Cables'!$I:$I,'XPLE Cables'!$I:$I,"<"&D23,'XPLE Cables'!$I:$I,">"&D22) -> 2236.214825
D24: 220 | E24: 21 | F24: =SUMIFS('XPLE Cables'!$I:$I,'XPLE Cables'!$I:$I,"<"&D24,'XPLE Cables'!$I:$I,">"&D23) -> 4515.209228
D25: 230 | E25: 13 | F25: =SUMIFS('XPLE Cables'!$I:$I,'XPLE Cables'!$I:$I,"<"&D25,'XPLE Cables'!$I:$I,">"&D24) -> 2938.044809
D26: 240 | E26: 6 | F26: =SUMIFS('XPLE Cables'!$I:$I,'XPLE Cables'!$I:$I,"<"&D26,'XPLE Cables'!$I:$I,">"&D25) -> 1408.26639
D27: 250 | E27: 11 | F27: =SUMIFS('XPLE Cables'!$I:$I,'XPLE Cables'!$I:$I,"<"&D27,'XPLE Cables'!$I:$I,">"&D26) -> 2690.847207
D28: 260 | E28: 14 | F28: =SUMIFS('XPLE Cables'!$I:$I,'XPLE Cables'!$I:$I,"<"&D28,'XPLE Cables'!$I:$I,">"&D27) -> 3588.0695
D29: 270 | E29: 6 | F29: =SUMIFS('XPLE Cables'!$I:$I,'XPLE Cables'!$I:$I,"<"&D29,'XPLE Cables'!$I:$I,">"&D28) -> 1602.02
D30: 280 | E30: 14 | F30: =SUMIFS('XPLE Cables'!$I:$I,'XPLE Cables'!$I:$I,"<"&D30,'XPLE Cables'!$I:$I,">"&D29) -> 3863.489334
D31: 290 | E31: 11 | F31: =SUMIFS('XPLE Cables'!$I:$I,'XPLE Cables'!$I:$I,"<"&D31,'XPLE Cables'!$I:$I,">"&D30) -> 3129.516221
D32: 300 | E32: 8 | F32: =SUMIFS('XPLE Cables'!$I:$I,'XPLE Cables'!$I:$I,"<"&D32,'XPLE Cables'!$I:$I,">"&D31) -> 2344.318617
D33: 310 | E33: 6 | F33: =SUMIFS('XPLE Cables'!$I:$I,'XPLE Cables'!$I:$I,"<"&D33,'XPLE Cables'!$I:$I,">"&D32) -> 1828.478912
D34: 320 | E34: 10 | F34: =SUMIFS('XPLE Cables'!$I:$I,'XPLE Cables'!$I:$I,"<"&D34,'XPLE Cables'!$I:$I,">"&D33) -> 3153.468667
D35: 330 | E35: 7 | F35: =SUMIFS('XPLE Cables'!$I:$I,'XPLE Cables'!$I:$I,"<"&D35,'XPLE Cables'!$I:$I,">"&D34) -> 2270.964314
D36: 340 | E36: 5 | F36: =SUMIFS('XPLE Cables'!$I:$I,'XPLE Cables'!$I:$I,"<"&D36,'XPLE Cables'!$I:$I,">"&D35) -> 1670.093591
D37: 350 | E37: 8 | F37: =SUMIFS('XPLE Cables'!$I:$I,'XPLE Cables'!$I:$I,"<"&D37,'XPLE Cables'!$I:$I,">"&D36) -> 2755.851697
D38: 360 | E38: 12 | F38: =SUMIFS('XPLE Cables'!$I:$I,'XPLE Cables'!$I:$I,"<"&D38,'XPLE Cables'!$I:$I,">"&D37) -> 4243.452327
D39: 370 | E39: 7 | F39: =SUMIFS('XPLE Cables'!$I:$I,'XPLE Cables'!$I:$I,"<"&D39,'XPLE Cables'!$I:$I,">"&D38) -> 2550.160586
D40: 380 | E40: 3 | F40: =SUMIFS('XPLE Cables'!$I:$I,'XPLE Cables'!$I:$I,"<"&D40,'XPLE Cables'!$I:$I,">"&D39) -> 1127.326182
D41: 390 | E41: 3 | F41: =SUMIFS('XPLE Cables'!$I:$I,'XPLE Cables'!$I:$I,"<"&D41,'XPLE Cables'!$I:$I,">"&D40) -> 1154.702337
D42: 400 | E42: 5 | F42: =SUMIFS('XPLE Cables'!$I:$I,'XPLE Cables'!$I:$I,"<"&D42,'XPLE Cables'!$I:$I,">"&D41) -> 1977.240846
D43: 410 | E43: 4 | F43: =SUMIFS('XPLE Cables'!$I:$I,'XPLE Cables'!$I:$I,"<"&D43,'XPLE Cables'!$I:$I,">"&D42) -> 1620.982152
D44: 420 | E44: 6 | F44: =SUMIFS('XPLE Cables'!$I:$I,'XPLE Cables'!$I:$I,"<"&D44,'XPLE Cables'!$I:$I,">"&D43) -> 2491.557589
D45: 430 | E45: 5 | F45: =SUMIFS('XPLE Cables'!$I:$I,'XPLE Cables'!$I:$I,"<"&D45,'XPLE Cables'!$I:$I,">"&D44) -> 2127.572355
D46: 440 | E46: 3 | F46: =SUMIFS('XPLE Cables'!$I:$I,'XPLE Cables'!$I:$I,"<"&D46,'XPLE Cables'!$I:$I,">"&D45) -> 1304.15
D47: 450 | E47: 2 | F47: =SUMIFS('XPLE Cables'!$I:$I,'XPLE Cables'!$I:$I,"<"&D47,'XPLE Cables'!$I:$I,">"&D46) -> 888.0178921
D48: 460 | E48: 1 | F48: =SUMIFS('XPLE Cables'!$I:$I,'XPLE Cables'!$I:$I,"<"&D48,'XPLE Cables'!$I:$I,">"&D47) -> 451.3183336
D49: 470 | E49: 2 | F49: =SUMIFS('XPLE Cables'!$I:$I,'XPLE Cables'!$I:$I,"<"&D49,'XPLE Cables'!$I:$I,">"&D48) -> 934.12
D50: 480 | E50: 4 | F50: =SUMIFS('XPLE Cables'!$I:$I,'XPLE Cables'!$I:$I,"<"&D50,'XPLE Cables'!$I:$I,">"&D49) -> 1901.335659
D51: 490 | E51: 3 | F51: =SUMIFS('XPLE Cables'!$I:$I,'XPLE Cables'!$I:$I,"<"&D51,'XPLE Cables'!$I:$I,">"&D50) -> 1453.280213
D52: 500 | E52: 3 | F52: =SUMIFS('XPLE Cables'!$I:$I,'XPLE Cables'!$I:$I,"<"&D52,'XPLE Cables'!$I:$I,">"&D51) -> 1481.653745
D53: 510 | E53: 0 | F53: =SUMIFS('XPLE Cables'!$I:$I,'XPLE Cables'!$I:$I,"<"&D53,'XPLE Cables'!$I:$I,">"&D52) -> 0
D54: 520 | E54: 4 | F54: =SUMIFS('XPLE Cables'!$I:$I,'XPLE Cables'!$I:$I,"<"&D54,'XPLE Cables'!$I:$I,">"&D53) -> 2065.36
D55: 530 | E55: 0 | F55: =SUMIFS('XPLE Cables'!$I:$I,'XPLE Cables'!$I:$I,"<"&D55,'XPLE Cables'!$I:$I,">"&D54) -> 0
D56: 540 | E56: 0 | F56: =SUMIFS('XPLE Cables'!$I:$I,'XPLE Cables'!$I:$I,"<"&D56,'XPLE Cables'!$I:$I,">"&D55) -> 0
D57: 550 | E57: 3 | F57: =SUMIFS('XPLE Cables'!$I:$I,'XPLE Cables'!$I:$I,"<"&D57,'XPLE Cables'!$I:$I,">"&D56) -> 1631.817207
D58: 560 | E58: 3 | F58: =SUMIFS('XPLE Cables'!$I:$I,'XPLE Cables'!$I:$I,"<"&D58,'XPLE Cables'!$I:$I,">"&D57) -> 1663.060587
D59: 570 | E59: 5 | F59: =SUMIFS('XPLE Cables'!$I:$I,'XPLE Cables'!$I:$I,"<"&D59,'XPLE Cables'!$I:$I,">"&D58) -> 2824.411431
D60: 580 | E60: 2 | F60: =SUMIFS('XPLE Cables'!$I:$I,'XPLE Cables'!$I:$I,"<"&D60,'XPLE Cables'!$I:$I,">"&D59) -> 1144.68136
D61: 590 | E61: 2 | F61: =SUMIFS('XPLE Cables'!$I:$I,'XPLE Cables'!$I:$I,"<"&D61,'XPLE Cables'!$I:$I,">"&D60) -> 1170.700577
D62: 600 | E62: 2 | F62: =SUMIFS('XPLE Cables'!$I:$I,'XPLE Cables'!$I:$I,"<"&D62,'XPLE Cables'!$I:$I,">"&D61) -> 1189.084711
D63: 610 | E63: 0 | F63: =SUMIFS('XPLE Cables'!$I:$I,'XPLE Cables'!$I:$I,"<"&D63,'XPLE Cables'!$I:$I,">"&D62) -> 0
D64: 620 | E64: 0 | F64: =SUMIFS('XPLE Cables'!$I:$I,'XPLE Cables'!$I:$I,"<"&D64,'XPLE Cables'!$I:$I,">"&D63) -> 0
D65: 630 | E65: 1 | F65: =SUMIFS('XPLE Cables'!$I:$I,'XPLE Cables'!$I:$I,"<"&D65,'XPLE Cables'!$I:$I,">"&D64) -> 622.92
D66: 640 | E66: 0 | F66: =SUMIFS('XPLE Cables'!$I:$I,'XPLE Cables'!$I:$I,"<"&D66,'XPLE Cables'!$I:$I,">"&D65) -> 0
D67: 650 | E67: 0 | F67: =SUMIFS('XPLE Cables'!$I:$I,'XPLE Cables'!$I:$I,"<"&D67,'XPLE Cables'!$I:$I,">"&D66) -> 0
D68: 660 | E68: 0 | F68: =SUMIFS('XPLE Cables'!$I:$I,'XPLE Cables'!$I:$I,"<"&D68,'XPLE Cables'!$I:$I,">"&D67) -> 0
D69: =D68+10 -> 670 | E69: 1 | F69: =SUMIFS('XPLE Cables'!$I:$I,'XPLE Cables'!$I:$I,"<"&D69,'XPLE Cables'!$I:$I,">"&D68) -> 668.921616
D70: 680 | E70: 1 | F70: =SUMIFS('XPLE Cables'!$I:$I,'XPLE Cables'!$I:$I,"<"&D70,'XPLE Cables'!$I:$I,">"&D69) -> 670.04
D71: 690 | E71: 0 | F71: =SUMIFS('XPLE Cables'!$I:$I,'XPLE Cables'!$I:$I,"<"&D71,'XPLE Cables'!$I:$I,">"&D70) -> 0
D72: 700 | E72: 1 | F72: =SUMIFS('XPLE Cables'!$I:$I,'XPLE Cables'!$I:$I,"<"&D72,'XPLE Cables'!$I:$I,">"&D71) -> 697.03
D73: 710 | E73: 0 | F73: =SUMIFS('XPLE Cables'!$I:$I,'XPLE Cables'!$I:$I,"<"&D73,'XPLE Cables'!$I:$I,">"&D72) -> 0
D74: 720 | E74: 0 | F74: =SUMIFS('XPLE Cables'!$I:$I,'XPLE Cables'!$I:$I,"<"&D74,'XPLE Cables'!$I:$I,">"&D73) -> 0
D75: 730 | E75: 0 | F75: =SUMIFS('XPLE Cables'!$I:$I,'XPLE Cables'!$I:$I,"<"&D75,'XPLE Cables'!$I:$I,">"&D74) -> 0
D76: 740 | E76: 0 | F76: =SUMIFS('XPLE Cables'!$I:$I,'XPLE Cables'!$I:$I,"<"&D76,'XPLE Cables'!$I:$I,">"&D75) -> 0
D77: 750 | E77: 0 | F77: =SUMIFS('XPLE Cables'!$I:$I,'XPLE Cables'!$I:$I,"<"&D77,'XPLE Cables'!$I:$I,">"&D76) -> 0
D78: 760 | E78: 0 | F78: =SUMIFS('XPLE Cables'!$I:$I,'XPLE Cables'!$I:$I,"<"&D78,'XPLE Cables'!$I:$I,">"&D77) -> 0
D79: 770 | E79: 0 | F79: =SUMIFS('XPLE Cables'!$I:$I,'XPLE Cables'!$I:$I,"<"&D79,'XPLE Cables'!$I:$I,">"&D78) -> 0
D80: 780 | E80: 1 | F80: =SUMIFS('XPLE Cables'!$I:$I,'XPLE Cables'!$I:$I,"<"&D80,'XPLE Cables'!$I:$I,">"&D79) -> 771.1587828
D81: 790 | E81: 0 | F81: =SUMIFS('XPLE Cables'!$I:$I,'XPLE Cables'!$I:$I,"<"&D81,'XPLE Cables'!$I:$I,">"&D80) -> 0
D82: 800 | E82: 0 | F82: =SUMIFS('XPLE Cables'!$I:$I,'XPLE Cables'!$I:$I,"<"&D82,'XPLE Cables'!$I:$I,">"&D81) -> 0
D83: 810 | E83: 0 | F83: =SUMIFS('XPLE Cables'!$I:$I,'XPLE Cables'!$I:$I,"<"&D83,'XPLE Cables'!$I:$I,">"&D82) -> 0
D84: 820 | E84: 0 | F84: =SUMIFS('XPLE Cables'!$I:$I,'XPLE Cables'!$I:$I,"<"&D84,'XPLE Cables'!$I:$I,">"&D83) -> 0
D85: 830 | E85: 1 | F85: =SUMIFS('XPLE Cables'!$I:$I,'XPLE Cables'!$I:$I,"<"&D85,'XPLE Cables'!$I:$I,">"&D84) -> 820.95
D86: 840 | E86: 1 | F86: =SUMIFS('XPLE Cables'!$I:$I,'XPLE Cables'!$I:$I,"<"&D86,'XPLE Cables'!$I:$I,">"&D85) -> 830.59
D87: 850 | E87: 0 | F87: =SUMIFS('XPLE Cables'!$I:$I,'XPLE Cables'!$I:$I,"<"&D87,'XPLE Cables'!$I:$I,">"&D86) -> 0
D88: 860 | E88: 2 | F88: =SUMIFS('XPLE Cables'!$I:$I,'XPLE Cables'!$I:$I,"<"&D88,'XPLE Cables'!$I:$I,">"&D87) -> 1706.1
D89: 870 | E89: 2 | F89: =SUMIFS('XPLE Cables'!$I:$I,'XPLE Cables'!$I:$I,"<"&D89,'XPLE Cables'!$I:$I,">"&D88) -> 1726.678569
D90: 880 | E90: 0 | F90: =SUMIFS('XPLE Cables'!$I:$I,'XPLE Cables'!$I:$I,"<"&D90,'XPLE Cables'!$I:$I,">"&D89) -> 0
D91: 890 | E91: 0 | F91: =SUMIFS('XPLE Cables'!$I:$I,'XPLE Cables'!$I:$I,"<"&D91,'XPLE Cables'!$I:$I,">"&D90) -> 0
D92: 900 | E92: 0 | F92: =SUMIFS('XPLE Cables'!$I:$I,'XPLE Cables'!$I:$I,"<"&D92,'XPLE Cables'!$I:$I,">"&D91) -> 0
D93: 910 | E93: 0 | F93: =SUMIFS('XPLE Cables'!$I:$I,'XPLE Cables'!$I:$I,"<"&D93,'XPLE Cables'!$I:$I,">"&D92) -> 0
D94: 920 | E94: 0 | F94: =SUMIFS('XPLE Cables'!$I:$I,'XPLE Cables'!$I:$I,"<"&D94,'XPLE Cables'!$I:$I,">"&D93) -> 0
D95: 930 | E95: 1 | F95: =SUMIFS('XPLE Cables'!$I:$I,'XPLE Cables'!$I:$I,"<"&D95,'XPLE Cables'!$I:$I,">"&D94) -> 927.396261
D96: 940 | E96: 1 | F96: =SUMIFS('XPLE Cables'!$I:$I,'XPLE Cables'!$I:$I,"<"&D96,'XPLE Cables'!$I:$I,">"&D95) -> 934.38
D97: 950 | E97: 0 | F97: =SUMIFS('XPLE Cables'!$I:$I,'XPLE Cables'!$I:$I,"<"&D97,'XPLE Cables'!$I:$I,">"&D96) -> 0
D98: 960 | E98: 0 | F98: =SUMIFS('XPLE Cables'!$I:$I,'XPLE Cables'!$I:$I,"<"&D98,'XPLE Cables'!$I:$I,">"&D97) -> 0
D99: 970 | E99: 0 | F99: =SUMIFS('XPLE Cables'!$I:$I,'XPLE Cables'!$I:$I,"<"&D99,'XPLE Cables'!$I:$I,">"&D98) -> 0
D100: 980 | E100: 0 | F100: =SUMIFS('XPLE Cables'!$I:$I,'XPLE Cables'!$I:$I,"<"&D100,'XPLE Cables'!$I:$I,">"&D99) -> 0
D101: 990 | E101: 1 | F101: =SUMIFS('XPLE Cables'!$I:$I,'XPLE Cables'!$I:$I,"<"&D101,'XPLE Cables'!$I:$I,">"&D100) -> 980.66
D102: 1000 | E102: 0 | F102: =SUMIFS('XPLE Cables'!$I:$I,'XPLE Cables'!$I:$I,"<"&D102,'XPLE Cables'!$I:$I,">"&D101) -> 0
D103: 1010 | E103: 0 | F103: =SUMIFS('XPLE Cables'!$I:$I,'XPLE Cables'!$I:$I,"<"&D103,'XPLE Cables'!$I:$I,">"&D102) -> 0
D104: 1020 | E104: 0 | F104: =SUMIFS('XPLE Cables'!$I:$I,'XPLE Cables'!$I:$I,"<"&D104,'XPLE Cables'!$I:$I,">"&D103) -> 0
D105: 1030 | E105: 0 | F105: =SUMIFS('XPLE Cables'!$I:$I,'XPLE Cables'!$I:$I,"<"&D105,'XPLE Cables'!$I:$I,">"&D104) -> 0
D106: 1040 | E106: 0 | F106: =SUMIFS('XPLE Cables'!$I:$I,'XPLE Cables'!$I:$I,"<"&D106,'XPLE Cables'!$I:$I,">"&D105) -> 0
D107: 1050 | E107: 0 | F107: =SUMIFS('XPLE Cables'!$I:$I,'XPLE Cables'!$I:$I,"<"&D107,'XPLE Cables'!$I:$I,">"&D106) -> 0
D108: 1060 | E108: 0 | F108: =SUMIFS('XPLE Cables'!$I:$I,'XPLE Cables'!$I:$I,"<"&D108,'XPLE Cables'!$I:$I,">"&D107) -> 0
D109: 1070 | E109: 0 | F109: =SUMIFS('XPLE Cables'!$I:$I,'XPLE Cables'!$I:$I,"<"&D109,'XPLE Cables'!$I:$I,">"&D108) -> 0
D110: 1080 | E110: 0 | F110: =SUMIFS('XPLE Cables'!$I:$I,'XPLE Cables'!$I:$I,"<"&D110,'XPLE Cables'!$I:$I,">"&D109) -> 0
D111: 1090 | E111: 0 | F111: =SUMIFS('XPLE Cables'!$I:$I,'XPLE Cables'!$I:$I,"<"&D111,'XPLE Cables'!$I:$I,">"&D110) -> 0
D112: 1100 | E112: 0 | F112: =SUMIFS('XPLE Cables'!$I:$I,'XPLE Cables'!$I:$I,"<"&D112,'XPLE Cables'!$I:$I,">"&D111) -> 0
D113: 1110 | E113: 0 | F113: =SUMIFS('XPLE Cables'!$I:$I,'XPLE Cables'!$I:$I,"<"&D113,'XPLE Cables'!$I:$I,">"&D112) -> 0
D114: 1120 | E114: 0 | F114: =SUMIFS('XPLE Cables'!$I:$I,'XPLE Cables'!$I:$I,"<"&D114,'XPLE Cables'!$I:$I,">"&D113) -> 0
D115: 1130 | E115: 0 | F115: =SUMIFS('XPLE Cables'!$I:$I,'XPLE Cables'!$I:$I,"<"&D115,'XPLE Cables'!$I:$I,">"&D114) -> 0
D116: 1140 | E116: 0 | F116: =SUMIFS('XPLE Cables'!$I:$I,'XPLE Cables'!$I:$I,"<"&D116,'XPLE Cables'!$I:$I,">"&D115) -> 0
D117: 1150 | E117: 0 | F117: =SUMIFS('XPLE Cables'!$I:$I,'XPLE Cables'!$I:$I,"<"&D117,'XPLE Cables'!$I:$I,">"&D116) -> 0
D118: 1160 | E118: 0 | F118: =SUMIFS('XPLE Cables'!$I:$I,'XPLE Cables'!$I:$I,"<"&D118,'XPLE Cables'!$I:$I,">"&D117) -> 0
D119: 1170 | E119: 0 | F119: =SUMIFS('XPLE Cables'!$I:$I,'XPLE Cables'!$I:$I,"<"&D119,'XPLE Cables'!$I:$I,">"&D118) -> 0
D120: 1180 | E120: 0 | F120: =SUMIFS('XPLE Cables'!$I:$I,'XPLE Cables'!$I:$I,"<"&D120,'XPLE Cables'!$I:$I,">"&D119) -> 0
D121: 1190 | E121: 0 | F121: =SUMIFS('XPLE Cables'!$I:$I,'XPLE Cables'!$I:$I,"<"&D121,'XPLE Cables'!$I:$I,">"&D120) -> 0
D122: 1200 | E122: 0 | F122: =SUMIFS('XPLE Cables'!$I:$I,'XPLE Cables'!$I:$I,"<"&D122,'XPLE Cables'!$I:$I,">"&D121) -> 0
D123: 1210 | E123: 0 | F123: =SUMIFS('XPLE Cables'!$I:$I,'XPLE Cables'!$I:$I,"<"&D123,'XPLE Cables'!$I:$I,">"&D122) -> 0
D124: 1220 | E124: 0 | F124: =SUMIFS('XPLE Cables'!$I:$I,'XPLE Cables'!$I:$I,"<"&D124,'XPLE Cables'!$I:$I,">"&D123) -> 0
D125: 1230 | E125: 0 | F125: =SUMIFS('XPLE Cables'!$I:$I,'XPLE Cables'!$I:$I,"<"&D125,'XPLE Cables'!$I:$I,">"&D124) -> 0
D126: 1240 | E126: 0 | F126: =SUMIFS('XPLE Cables'!$I:$I,'XPLE Cables'!$I:$I,"<"&D126,'XPLE Cables'!$I:$I,">"&D125) -> 0
D127: 1250 | E127: 0 | F127: =SUMIFS('XPLE Cables'!$I:$I,'XPLE Cables'!$I:$I,"<"&D127,'XPLE Cables'!$I:$I,">"&D126) -> 0
D128: 1260 | E128: 0 | F128: =SUMIFS('XPLE Cables'!$I:$I,'XPLE Cables'!$I:$I,"<"&D128,'XPLE Cables'!$I:$I,">"&D127) -> 0
D129: 1270 | E129: 0 | F129: =SUMIFS('XPLE Cables'!$I:$I,'XPLE Cables'!$I:$I,"<"&D129,'XPLE Cables'!$I:$I,">"&D128) -> 0
D130: 1280 | E130: 0 | F130: =SUMIFS('XPLE Cables'!$I:$I,'XPLE Cables'!$I:$I,"<"&D130,'XPLE Cables'!$I:$I,">"&D129) -> 0
D131: 1290 | E131: 0 | F131: =SUMIFS('XPLE Cables'!$I:$I,'XPLE Cables'!$I:$I,"<"&D131,'XPLE Cables'!$I:$I,">"&D130) -> 0
D132: 1300 | E132: 0 | F132: =SUMIFS('XPLE Cables'!$I:$I,'XPLE Cables'!$I:$I,"<"&D132,'XPLE Cables'!$I:$I,">"&D131) -> 0
D133: =D132+10 -> 1310 | E133: 0 | F133: =SUMIFS('XPLE Cables'!$I:$I,'XPLE Cables'!$I:$I,"<"&D133,'XPLE Cables'!$I:$I,">"&D132) -> 0
D134: 1320 | E134: 0 | F134: =SUMIFS('XPLE Cables'!$I:$I,'XPLE Cables'!$I:$I,"<"&D134,'XPLE Cables'!$I:$I,">"&D133) -> 0
D135: 1330 | E135: 0 | F135: =SUMIFS('XPLE Cables'!$I:$I,'XPLE Cables'!$I:$I,"<"&D135,'XPLE Cables'!$I:$I,">"&D134) -> 0
D136: 1340 | E136: 0 | F136: =SUMIFS('XPLE Cables'!$I:$I,'XPLE Cables'!$I:$I,"<"&D136,'XPLE Cables'!$I:$I,">"&D135) -> 0
D137: 1350 | E137: 1 | F137: =SUMIFS('XPLE Cables'!$I:$I,'XPLE Cables'!$I:$I,"<"&D137,'XPLE Cables'!$I:$I,">"&D136) -> 1343.6
D138: 1360 | E138: 1 | F138: =SUMIFS('XPLE Cables'!$I:$I,'XPLE Cables'!$I:$I,"<"&D138,'XPLE Cables'!$I:$I,">"&D137) -> 1359.503782
D139: 1370 | E139: 0 | F139: =SUMIFS('XPLE Cables'!$I:$I,'XPLE Cables'!$I:$I,"<"&D139,'XPLE Cables'!$I:$I,">"&D138) -> 0
D140: 1380 | E140: 0 | F140: =SUMIFS('XPLE Cables'!$I:$I,'XPLE Cables'!$I:$I,"<"&D140,'XPLE Cables'!$I:$I,">"&D139) -> 0
D141: 1390 | E141: 0 | F141: =SUMIFS('XPLE Cables'!$I:$I,'XPLE Cables'!$I:$I,"<"&D141,'XPLE Cables'!$I:$I,">"&D140) -> 0
D142: 1400 | E142: 0 | F142: =SUMIFS('XPLE Cables'!$I:$I,'XPLE Cables'!$I:$I,"<"&D142,'XPLE Cables'!$I:$I,">"&D141) -> 0
D143: 1410 | E143: 0 | F143: =SUMIFS('XPLE Cables'!$I:$I,'XPLE Cables'!$I:$I,"<"&D143,'XPLE Cables'!$I:$I,">"&D142) -> 0
D144: 1420 | E144: 0 | F144: =SUMIFS('XPLE Cables'!$I:$I,'XPLE Cables'!$I:$I,"<"&D144,'XPLE Cables'!$I:$I,">"&D143) -> 0
D145: 1430 | E145: 0 | F145: =SUMIFS('XPLE Cables'!$I:$I,'XPLE Cables'!$I:$I,"<"&D145,'XPLE Cables'!$I:$I,">"&D144) -> 0
D146: 1440 | E146: 0 | F146: =SUMIFS('XPLE Cables'!$I:$I,'XPLE Cables'!$I:$I,"<"&D146,'XPLE Cables'!$I:$I,">"&D145) -> 0
D147: 1450 | E147: 1 | F147: =SUMIFS('XPLE Cables'!$I:$I,'XPLE Cables'!$I:$I,"<"&D147,'XPLE Cables'!$I:$I,">"&D146) -> 1446.94
D148: 1460 | E148: 0 | F148: =SUMIFS('XPLE Cables'!$I:$I,'XPLE Cables'!$I:$I,"<"&D148,'XPLE Cables'!$I:$I,">"&D147) -> 0
D149: 1470 | E149: 0 | F149: =SUMIFS('XPLE Cables'!$I:$I,'XPLE Cables'!$I:$I,"<"&D149,'XPLE Cables'!$I:$I,">"&D148) -> 0
D150: 1480 | E150: 0 | F150: =SUMIFS('XPLE Cables'!$I:$I,'XPLE Cables'!$I:$I,"<"&D150,'XPLE Cables'!$I:$I,">"&D149) -> 0
D151: 1490 | E151: 0 | F151: =SUMIFS('XPLE Cables'!$I:$I,'XPLE Cables'!$I:$I,"<"&D151,'XPLE Cables'!$I:$I,">"&D150) -> 0
D152: 1500 | E152: 0 | F152: =SUMIFS('XPLE Cables'!$I:$I,'XPLE Cables'!$I:$I,"<"&D152,'XPLE Cables'!$I:$I,">"&D151) -> 0
D153: 1510 | E153: 0 | F153: =SUMIFS('XPLE Cables'!$I:$I,'XPLE Cables'!$I:$I,"<"&D153,'XPLE Cables'!$I:$I,">"&D152) -> 0
D154: 1520 | E154: 0 | F154: =SUMIFS('XPLE Cables'!$I:$I,'XPLE Cables'!$I:$I,"<"&D154,'XPLE Cables'!$I:$I,">"&D153) -> 0
D155: 1530 | E155: 0 | F155: =SUMIFS('XPLE Cables'!$I:$I,'XPLE Cables'!$I:$I,"<"&D155,'XPLE Cables'!$I:$I,">"&D154) -> 0
D156: 1540 | E156: 0 | F156: =SUMIFS('XPLE Cables'!$I:$I,'XPLE Cables'!$I:$I,"<"&D156,'XPLE Cables'!$I:$I,">"&D155) -> 0
D157: 1550 | E157: 0 | F157: =SUMIFS('XPLE Cables'!$I:$I,'XPLE Cables'!$I:$I,"<"&D157,'XPLE Cables'!$I:$I,">"&D156) -> 0
D158: 1560 | E158: 0 | F158: =SUMIFS('XPLE Cables'!$I:$I,'XPLE Cables'!$I:$I,"<"&D158,'XPLE Cables'!$I:$I,">"&D157) -> 0
D159: 1570 | E159: 0 | F159: =SUMIFS('XPLE Cables'!$I:$I,'XPLE Cables'!$I:$I,"<"&D159,'XPLE Cables'!$I:$I,">"&D158) -> 0
D160: 1580 | E160: 0 | F160: =SUMIFS('XPLE Cables'!$I:$I,'XPLE Cables'!$I:$I,"<"&D160,'XPLE Cables'!$I:$I,">"&D159) -> 0
D161: 1590 | E161: 0 | F161: =SUMIFS('XPLE Cables'!$I:$I,'XPLE Cables'!$I:$I,"<"&D161,'XPLE Cables'!$I:$I,">"&D160) -> 0
D162: 1600 | E162: 0 | F162: =SUMIFS('XPLE Cables'!$I:$I,'XPLE Cables'!$I:$I,"<"&D162,'XPLE Cables'!$I:$I,">"&D161) -> 0
D163: 1610 | E163: 0 | F163: =SUMIFS('XPLE Cables'!$I:$I,'XPLE Cables'!$I:$I,"<"&D163,'XPLE Cables'!$I:$I,">"&D162) -> 0
D164: 1620 | E164: 0 | F164: =SUMIFS('XPLE Cables'!$I:$I,'XPLE Cables'!$I:$I,"<"&D164,'XPLE Cables'!$I:$I,">"&D163) -> 0
D165: 1630 | E165: 0 | F165: =SUMIFS('XPLE Cables'!$I:$I,'XPLE Cables'!$I:$I,"<"&D165,'XPLE Cables'!$I:$I,">"&D164) -> 0
D166: 1640 | E166: 0 | F166: =SUMIFS('XPLE Cables'!$I:$I,'XPLE Cables'!$I:$I,"<"&D166,'XPLE Cables'!$I:$I,">"&D165) -> 0
D167: 1650 | E167: 0 | F167: =SUMIFS('XPLE Cables'!$I:$I,'XPLE Cables'!$I:$I,"<"&D167,'XPLE Cables'!$I:$I,">"&D166) -> 0
D168: 1660 | E168: 0 | F168: =SUMIFS('XPLE Cables'!$I:$I,'XPLE Cables'!$I:$I,"<"&D168,'XPLE Cables'!$I:$I,">"&D167) -> 0
D169: 1670 | E169: 0 | F169: =SUMIFS('XPLE Cables'!$I:$I,'XPLE Cables'!$I:$I,"<"&D169,'XPLE Cables'!$I:$I,">"&D168) -> 0
D170: 1680 | E170: 1 | F170: =SUMIFS('XPLE Cables'!$I:$I,'XPLE Cables'!$I:$I,"<"&D170,'XPLE Cables'!$I:$I,">"&D169) -> 1671.4
D171: 1690 | E171: 0 | F171: =SUMIFS('XPLE Cables'!$I:$I,'XPLE Cables'!$I:$I,"<"&D171,'XPLE Cables'!$I:$I,">"&D170) -> 0
D172: 1700 | E172: 0 | F172: =SUMIFS('XPLE Cables'!$I:$I,'XPLE Cables'!$I:$I,"<"&D172,'XPLE Cables'!$I:$I,">"&D171) -> 0
D173: 1700+ | E173: 4 | F173: =SUMIFS('XPLE Cables'!$I:$I,'XPLE Cables'!$I:$I,">"&D172) -> 8627.182918

Sheet MC Output
A1: Faulure rate | B1: # segments | C1: Unit cost | D1: Volumes | E1: Costs | G1: MC Output | H1: Value | J1: Replaced (km) | K1: Replaced (m) | L1: MC Frequency | M1: Norm Dist
A2: 0.2728730922 | B2: 232 | C2: 0.2 | D2: 34597.04774 | E2: 6919.409549 | G2: Min | H2: =MIN(D:D) -> 17204.05689 | J2: =K2/1000 -> 17 | K2: 17000 | L2: =FREQUENCY(D:D,K2:K23) -> 0 | M2: =_xlfn.NORM.DIST($K2,$H$4,$H$5,FALSE) -> 1.243293756e-06
A3: 0.2170052565 | B3: 184 | C3: 0.2 | D3: 32597.05578 | E3: 6519.411156 | G3: Max | H3: =MAX(D:D) -> 58391.57573 | J3: =K3/1000 -> 19 | K3: =K2+2000 -> 19000 | L3: 8 | M3: 3.198509351e-06
A4: 0.2309632308 | B4: 196 | C4: 0.2 | D4: 30196.7793 | E4: 6039.35586 | G4: Average | H4: =AVERAGE(D:D) -> 33038.97943 | J4: 21 | K4: =K3+2000 -> 21000 | L4: 39 | M4: 7.256827503e-06
A5: 0.1892643181 | B5: 161 | C5: 0.2 | D5: 29284.45221 | E5: 5856.890442 | G5: Std Dev | H5: =_xlfn.STDEV.P(D:D) -> 5641.914301 | J5: 23 | K5: =K4+2000 -> 23000 | L5: 197 | M5: 1.452015586e-05
A6: 0.2027285117 | B6: 172 | C6: 0.2 | D6: 30071.39531 | E6: 6014.279062 | J6: 25 | K6: 25000 | L6: 495 | M6: 2.56224739e-05
A7: 0.2520959237 | B7: 214 | C7: 0.2 | D7: 33066.90378 | E7: 6613.380756 | J7: 27 | K7: 27000 | L7: 820 | M7: 3.987458204e-05
A8: 0.2199207977 | B8: 187 | C8: 0.2 | D8: 32175.6267 | E8: 6435.12534 | J8: 29 | K8: 29000 | L8: 1063 | M8: 5.472635602e-05
A9: 0.2442108496 | B9: 207 | C9: 0.2 | D9: 33014.69968 | E9: 6602.939937 | J9: 31 | K9: 31000 | L9: 1178 | M9: 6.624028952e-05
A10: 0.2218357447 | B10: 188 | C10: 0.2 | D10: 32555.33326 | E10: 6511.066651 | J10: 33 | K10: 33000 | L10: 1299 | M10: 7.07087591e-05
A11: 0.190971782 | B11: 162 | C11: 0.2 | D11: 31462.07841 | E11: 6292.415683 | J11: 35 | K11: 35000 | L11: 1279 | M11: 6.656554812e-05
A12: 0.2001282824 | B12: 170 | C12: 0.2 | D12: 23288.96732 | E12: 4657.793463 | J12: 37 | K12: 37000 | L12: 1099 | M12: 5.526511936e-05
A13: 0.2847271729 | B13: 242 | C13: 0.2 | D13: 34709.0014 | E13: 6941.80028 | J13: 39 | K13: 39000 | L13: 926 | M13: 4.046485749e-05
A14: 0.2520550114 | B14: 214 | C14: 0.2 | D14: 36051.25965 | E14: 7210.25193 | J14: 41 | K14: 41000 | L14: 708 | M14: 2.612944717e-05
A15: 0.2167217925 | B15: 184 | C15: 0.2 | D15: 29243.53565 | E15: 5848.707129 | J15: 43 | K15: 43000 | L15: 465 | M15: 1.488016443e-05
A16: 0.2123844734 | B16: 180 | C16: 0.2 | D16: 24218.89042 | E16: 4843.778084 | J16: 45 | K16: 45000 | L16: 268 | M16: 7.473267755e-06
A17: 0.2317271032 | B17: 197 | C17: 0.2 | D17: 29402.73908 | E17: 5880.547816 | J17: 47 | K17: 47000 | L17: 97 | M17: 3.310081278e-06
A18: 0.1999209487 | B18: 170 | C18: 0.2 | D18: 31047.11562 | E18: 6209.423124 | J18: 49 | K18: 49000 | L18: 42 | M18: 1.292980801e-06
A19: 0.2925228256 | B19: 248 | C19: 0.2 | D19: 41633.93163 | E19: 8326.786326 | J19: 51 | K19: 51000 | L19: 13 | M19: 4.45421112e-07
A20: 0.2483474057 | B20: 211 | C20: 0.2 | D20: 34980.3054 | E20: 6996.06108 | J20: 53 | K20: 53000 | L20: 1 | M20: 1.353239987e-07
A21: 0.2127323263 | B21: 181 | C21: 0.2 | D21: 27978.53226 | E21: 5595.706452 | J21: 55 | K21: 55000 | L21: 2 | M21: 3.625802549e-08
A22: 0.2518091369 | B22: 214 | C22: 0.2 | D22: 39855.58919 | E22: 7971.117838 | J22: 57 | K22: 57000 | L22: 0 | M22: 8.567592081e-09
A23: 0.263385801 | B23: 224 | C23: 0.2 | D23: 40350.44265 | E23: 8070.088531 | J23: 59 | K23: 59000 | L23: 1 | M23: 1.78541309e-09
A24: 0.2915714879 | B24: 248 | C24: 0.2 | D24: 39182.89728 | E24: 7836.579456
A25: 0.2522553395 | B25: 214 | C25: 0.2 | D25: 37496.49469 | E25: 7499.298938
A26: 0.2653873086 | B26: 225 | C26: 0.2 | D26: 36414.60404 | E26: 7282.920808
A27: 0.2050665586 | B27: 174 | C27: 0.2 | D27: 24751.77017 | E27: 4950.354035
A28: 0.2489172896 | B28: 211 | C28: 0.2 | D28: 37936.1376 | E28: 7587.22752
A29: 0.2761231273 | B29: 234 | C29: 0.2 | D29: 36849.53853 | E29: 7369.907707
A30: 0.2020082288 | B30: 171 | C30: 0.2 | D30: 27646.77436 | E30: 5529.354873
A31: 0.2369225063 | B31: 201 | C31: 0.2 | D31: 31683.8324 | E31: 6336.76648
A32: 0.2250517237 | B32: 191 | C32: 0.2 | D32: 34174.90103 | E32: 6834.980207
A33: 0.2599056895 | B33: 221 | C33: 0.2 | D33: 43395.16167 | E33: 8679.032334
A34: 0.2527278929 | B34: 215 | C34: 0.2 | D34: 39206.77447 | E34: 7841.354894
A35: 0.2461857891 | B35: 209 | C35: 0.2 | D35: 35011.30799 | E35: 7002.261598
A36: 0.2773190281 | B36: 235 | C36: 0.2 | D36: 34796.8645 | E36: 6959.372901
A37: 0.2784658763 | B37: 236 | C37: 0.2 | D37: 36922.9177 | E37: 7384.58354
A38: 0.284371533 | B38: 242 | C38: 0.2 | D38: 32698.98709 | E38: 6539.797417
A39: 0.2666683567 | B39: 226 | C39: 0.2 | D39: 32117.74141 | E39: 6423.548282
A40: 0.2864439729 | B40: 243 | C40: 0.2 | D40: 42131.83934 | E40: 8426.367869
A41: 0.2889077872 | B41: 245 | C41: 0.2 | D41: 40041.1377 | E41: 8008.22754
A42: 0.1887837263 | B42: 160 | C42: 0.2 | D42: 26511.94032 | E42: 5302.388064
A43: 0.2808471866 | B43: 239 | C43: 0.2 | D43: 39587.86489 | E43: 7917.572978
A44: 0.2666101241 | B44: 226 | C44: 0.2 | D44: 36470.47839 | E44: 7294.095679
A45: 0.2467917949 | B45: 210 | C45: 0.2 | D45: 31994.90545 | E45: 6398.98109
A46: 0.2692596982 | B46: 229 | C46: 0.2 | D46: 34506.59645 | E46: 6901.31929
A47: 0.2563650827 | B47: 218 | C47: 0.2 | D47: 34531.03141 | E47: 6906.206282
A48: 0.2661931397 | B48: 226 | C48: 0.2 | D48: 36668.21468 | E48: 7333.642936
A49: 0.2900632989 | B49: 246 | C49: 0.2 | D49: 40887.51382 | E49: 8177.502764
A50: 0.2289336194 | B50: 194 | C50: 0.2 | D50: 28969.79887 | E50: 5793.959775
A51: 0.2781031494 | B51: 236 | C51: 0.2 | D51: 35239.19926 | E51: 7047.839852
A52: 0.2979178094 | B52: 253 | C52: 0.2 | D52: 36400.7772 | E52: 7280.15544
A53: 0.2355072924 | B53: 200 | C53: 0.2 | D53: 34500.8185 | E53: 6900.1637
A54: 0.2521810098 | B54: 214 | C54: 0.2 | D54: 32504.31984 | E54: 6500.863968
A55: 0.2933720423 | B55: 249 | C55: 0.2 | D55: 35793.68982 | E55: 7158.737964
A56: 0.2945987853 | B56: 250 | C56: 0.2 | D56: 38454.07724 | E56: 7690.815448
A57: 0.2282029266 | B57: 194 | C57: 0.2 | D57: 32802.29842 | E57: 6560.459683
A58: 0.2623999382 | B58: 223 | C58: 0.2 | D58: 35198.44576 | E58: 7039.689151
A59: 0.2675825669 | B59: 227 | C59: 0.2 | D59: 36878.66573 | E59: 7375.733145
A60: 0.2298122445 | B60: 195 | C60: 0.2 | D60: 29807.97365 | E60: 5961.594729
A61: 0.2450212809 | B61: 208 | C61: 0.2 | D61: 35062.58145 | E61: 7012.516289
A62: 0.2216408458 | B62: 188 | C62: 0.2 | D62: 34068.35533 | E62: 6813.671066
A63: 0.2587041897 | B63: 220 | C63: 0.2 | D63: 41771.62837 | E63: 8354.325673
A64: 0.241310169 | B64: 205 | C64: 0.2 | D64: 28908.67912 | E64: 5781.735823
A65: 0.258308949 | B65: 219 | C65: 0.2 | D65: 29828.58297 | E65: 5965.716595
A66: 0.2165036888 | B66: 184 | C66: 0.2 | D66: 26031.16927 | E66: 5206.233854
A67: 0.2770181011 | B67: 235 | C67: 0.2 | D67: 44110.91189 | E67: 8822.182378
A68: 0.2222668151 | B68: 189 | C68: 0.2 | D68: 33837.0823 | E68: 6767.416459
A69: 0.2908808037 | B69: 247 | C69: 0.2 | D69: 34012.89898 | E69: 6802.579796
A70: 0.2219079748 | B70: 188 | C70: 0.2 | D70: 31045.49614 | E70: 6209.099228
A71: 0.2250539389 | B71: 191 | C71: 0.2 | D71: 29661.49523 | E71: 5932.299046
A72: 0.1931284246 | B72: 164 | C72: 0.2 | D72: 24565.77958 | E72: 4913.155916
A73: 0.1983490437 | B73: 168 | C73: 0.2 | D73: 22670.21186 | E73: 4534.042373
A74: 0.253013212 | B74: 215 | C74: 0.2 | D74: 37227.44232 | E74: 7445.488463
A75: 0.2932832801 | B75: 249 | C75: 0.2 | D75: 43851.79016 | E75: 8770.358033
A76: 0.2494050093 | B76: 212 | C76: 0.2 | D76: 33172.89806 | E76: 6634.579612
A77: 0.2790820473 | B77: 237 | C77: 0.2 | D77: 38305.01577 | E77: 7661.003155
A78: 0.2066540648 | B78: 175 | C78: 0.2 | D78: 34343.00236 | E78: 6868.600472
A79: 0.2977012278 | B79: 253 | C79: 0.2 | D79: 44125.79223 | E79: 8825.158445
A80: 0.2013627037 | B80: 171 | C80: 0.2 | D80: 28036.37752 | E80: 5607.275504
A81: 0.1967712611 | B81: 167 | C81: 0.2 | D81: 25797.72493 | E81: 5159.544985
A82: 0.1861173009 | B82: 158 | C82: 0.2 | D82: 24650.16005 | E82: 4930.03201
A83: 0.2304838214 | B83: 196 | C83: 0.2 | D83: 26719.6953 | E83: 5343.939061
A84: 0.2086165899 | B84: 177 | C84: 0.2 | D84: 26851.78623 | E84: 5370.357245
A85: 0.2771242787 | B85: 235 | C85: 0.2 | D85: 40684.53071 | E85: 8136.906142
A86: 0.2220640136 | B86: 188 | C86: 0.2 | D86: 31676.14671 | E86: 6335.229341
A87: 0.1938188167 | B87: 164 | C87: 0.2 | D87: 29477.29905 | E87: 5895.45981
A88: 0.2861827215 | B88: 243 | C88: 0.2 | D88: 36269.51997 | E88: 7253.903994
A89: 0.2449728602 | B89: 208 | C89: 0.2 | D89: 35262.50872 | E89: 7052.501743
A90: 0.2196230371 | B90: 186 | C90: 0.2 | D90: 30275.65719 | E90: 6055.131437
A91: 0.2550047582 | B91: 217 | C91: 0.2 | D91: 39573.24908 | E91: 7914.649815
A92: 0.2546708418 | B92: 216 | C92: 0.2 | D92: 32216.41271 | E92: 6443.282542
A93: 0.2715860238 | B93: 231 | C93: 0.2 | D93: 33227.35076 | E93: 6645.470152
A94: 0.2773840556 | B94: 236 | C94: 0.2 | D94: 36854.15509 | E94: 7370.831019
A95: 0.2359766182 | B95: 200 | C95: 0.2 | D95: 31471.34987 | E95: 6294.269973
A96: 0.2475266869 | B96: 210 | C96: 0.2 | D96: 33081.0404 | E96: 6616.20808
A97: 0.2344739875 | B97: 199 | C97: 0.2 | D97: 25155.2441 | E97: 5031.04882
A98: 0.2637739953 | B98: 224 | C98: 0.2 | D98: 36167.10356 | E98: 7233.420712
A99: 0.2208598773 | B99: 187 | C99: 0.2 | D99: 25270.12011 | E99: 5054.024023
A100: 0.2662110579 | B100: 226 | C100: 0.2 | D100: 33791.08839 | E100: 6758.217678
A101: 0.244160241 | B101: 207 | C101: 0.2 | D101: 32992.25625 | E101: 6598.45125
A102: 0.2758523358 | B102: 234 | C102: 0.2 | D102: 38188.70069 | E102: 7637.740138
A103: 0.2641774035 | B103: 224 | C103: 0.2 | D103: 40656.31872 | E103: 8131.263744
A104: 0.1931805214 | B104: 164 | C104: 0.2 | D104: 26207.6597 | E104: 5241.53194
A105: 0.2590260723 | B105: 220 | C105: 0.2 | D105: 33847.59955 | E105: 6769.519909
A106: 0.2599936091 | B106: 221 | C106: 0.2 | D106: 31903.52304 | E106: 6380.704607
A107: 0.2887624573 | B107: 245 | C107: 0.2 | D107: 37234.26905 | E107: 7446.85381
A108: 0.2144541274 | B108: 182 | C108: 0.2 | D108: 25738.25281 | E108: 5147.650562
A109: 0.2628528135 | B109: 223 | C109: 0.2 | D109: 34077.32445 | E109: 6815.464891
A110: 0.1980544088 | B110: 168 | C110: 0.2 | D110: 22101.58883 | E110: 4420.317767
A111: 0.2667109405 | B111: 226 | C111: 0.2 | D111: 31521.53705 | E111: 6304.30741
A112: 0.2536117909 | B112: 215 | C112: 0.2 | D112: 30800.27068 | E112: 6160.054137
A113: 0.1937917864 | B113: 164 | C113: 0.2 | D113: 22207.25964 | E113: 4441.451927
A114: 0.2873081657 | B114: 244 | C114: 0.2 | D114: 43334.00568 | E114: 8666.801135
A115: 0.2880212731 | B115: 245 | C115: 0.2 | D115: 42824.54563 | E115: 8564.909127
A116: 0.2687426856 | B116: 228 | C116: 0.2 | D116: 33500.74168 | E116: 6700.148337
A117: 0.2313963329 | B117: 196 | C117: 0.2 | D117: 33008.55432 | E117: 6601.710864
A118: 0.2172333283 | B118: 184 | C118: 0.2 | D118: 28262.26727 | E118: 5652.453454
A119: 0.2514807175 | B119: 214 | C119: 0.2 | D119: 32901.18106 | E119: 6580.236212
A120: 0.1862442098 | B120: 158 | C120: 0.2 | D120: 20358.07733 | E120: 4071.615466
A121: 0.1987602593 | B121: 169 | C121: 0.2 | D121: 25346.64723 | E121: 5069.329446
A122: 0.2806288995 | B122: 238 | C122: 0.2 | D122: 39746.20466 | E122: 7949.240932
A123: 0.2911500392 | B123: 247 | C123: 0.2 | D123: 42272.53018 | E123: 8454.506036
A124: 0.2888012223 | B124: 245 | C124: 0.2 | D124: 40749.01502 | E124: 8149.803004
A125: 0.206109091 | B125: 175 | C125: 0.2 | D125: 25538.7924 | E125: 5107.75848
A126: 0.2976063502 | B126: 253 | C126: 0.2 | D126: 42573.0084 | E126: 8514.601681
A127: 0.2161085501 | B127: 183 | C127: 0.2 | D127: 30115.23545 | E127: 6023.047089
A128: 0.2119650021 | B128: 180 | C128: 0.2 | D128: 35437.02761 | E128: 7087.405521
A129: 0.2704873313 | B129: 230 | C129: 0.2 | D129: 40593.37683 | E129: 8118.675367
A130: 0.2522068305 | B130: 214 | C130: 0.2 | D130: 34190.859 | E130: 6838.1718
A131: 0.2542101456 | B131: 216 | C131: 0.2 | D131: 32342.17359 | E131: 6468.434718
A132: 0.2118750644 | B132: 180 | C132: 0.2 | D132: 27002.52563 | E132: 5400.505126
A133: 0.2732929033 | B133: 232 | C133: 0.2 | D133: 44000.21847 | E133: 8800.043693
A134: 0.2150785067 | B134: 183 | C134: 0.2 | D134: 28179.5363 | E134: 5635.907259
A135: 0.219972976 | B135: 187 | C135: 0.2 | D135: 25160.52359 | E135: 5032.104718
A136: 0.2365262668 | B136: 201 | C136: 0.2 | D136: 29033.39698 | E136: 5806.679395
A137: 0.2724734144 | B137: 231 | C137: 0.2 | D137: 41174.17393 | E137: 8234.834785
A138: 0.209749855 | B138: 178 | C138: 0.2 | D138: 25055.01099 | E138: 5011.002199
A139: 0.2854447514 | B139: 242 | C139: 0.2 | D139: 42768.294 | E139: 8553.658801
A140: 0.2715943544 | B140: 231 | C140: 0.2 | D140: 37304.14337 | E140: 7460.828674
A141: 0.2796454761 | B141: 237 | C141: 0.2 | D141: 39482.72723 | E141: 7896.545447
A142: 0.2494313464 | B142: 212 | C142: 0.2 | D142: 30965.3536 | E142: 6193.070721
A143: 0.2604864725 | B143: 221 | C143: 0.2 | D143: 27391.6186 | E143: 5478.323719
A144: 0.2902291156 | B144: 246 | C144: 0.2 | D144: 41303.36334 | E144: 8260.672669
A145: 0.2512569673 | B145: 213 | C145: 0.2 | D145: 37673.07395 | E145: 7534.61479
A146: 0.2935303302 | B146: 249 | C146: 0.2 | D146: 35390.77596 | E146: 7078.155193
A147: 0.2928620489 | B147: 249 | C147: 0.2 | D147: 47011.43798 | E147: 9402.287595
A148: 0.2288190365 | B148: 194 | C148: 0.2 | D148: 28662.25571 | E148: 5732.451143
A149: 0.2243064762 | B149: 190 | C149: 0.2 | D149: 28910.00519 | E149: 5782.001037
A150: 0.2800951645 | B150: 238 | C150: 0.2 | D150: 39374.45054 | E150: 7874.890109
A151: 0.2920468 | B151: 248 | C151: 0.2 | D151: 39713.16421 | E151: 7942.632842
A152: 0.2810812991 | B152: 239 | C152: 0.2 | D152: 40859.1413 | E152: 8171.828259
A153: 0.2705050185 | B153: 230 | C153: 0.2 | D153: 33437.41445 | E153: 6687.48289
A154: 0.2814255098 | B154: 239 | C154: 0.2 | D154: 38351.93105 | E154: 7670.38621
A155: 0.2536294645 | B155: 215 | C155: 0.2 | D155: 29103.57681 | E155: 5820.715361
A156: 0.2050168537 | B156: 174 | C156: 0.2 | D156: 20831.76479 | E156: 4166.352959
A157: 0.2481448488 | B157: 211 | C157: 0.2 | D157: 31982.71792 | E157: 6396.543585
A158: 0.2111866565 | B158: 179 | C158: 0.2 | D158: 32769.22704 | E158: 6553.845409
A159: 0.2252621899 | B159: 191 | C159: 0.2 | D159: 33203.26827 | E159: 6640.653654
A160: 0.1971357479 | B160: 167 | C160: 0.2 | D160: 23295.95285 | E160: 4659.190569
A161: 0.2675340986 | B161: 227 | C161: 0.2 | D161: 33261.31818 | E161: 6652.263636
A162: 0.2611364551 | B162: 222 | C162: 0.2 | D162: 36606.64584 | E162: 7321.329168
A163: 0.2738092772 | B163: 233 | C163: 0.2 | D163: 37114.25306 | E163: 7422.850611
A164: 0.2185286254 | B164: 185 | C164: 0.2 | D164: 28008.07687 | E164: 5601.615373
A165: 0.2945440589 | B165: 250 | C165: 0.2 | D165: 35608.14947 | E165: 7121.629894
A166: 0.1878746531 | B166: 159 | C166: 0.2 | D166: 26305.3472 | E166: 5261.06944
A167: 0.228576607 | B167: 194 | C167: 0.2 | D167: 31030.71319 | E167: 6206.142639
A168: 0.2219980077 | B168: 188 | C168: 0.2 | D168: 28393.87984 | E168: 5678.775967
A169: 0.2815853198 | B169: 239 | C169: 0.2 | D169: 39448.93099 | E169: 7889.786197
A170: 0.2239450743 | B170: 190 | C170: 0.2 | D170: 29888.63283 | E170: 5977.726566
A171: 0.2189347175 | B171: 186 | C171: 0.2 | D171: 32053.97521 | E171: 6410.795042
A172: 0.2122778134 | B172: 180 | C172: 0.2 | D172: 34430.79755 | E172: 6886.15951
A173: 0.2135652012 | B173: 181 | C173: 0.2 | D173: 31932.39884 | E173: 6386.479768
A174: 0.2513856021 | B174: 213 | C174: 0.2 | D174: 31423.80444 | E174: 6284.760887
A175: 0.2833816069 | B175: 241 | C175: 0.2 | D175: 35123.82524 | E175: 7024.765049
A176: 0.2347301427 | B176: 199 | C176: 0.2 | D176: 34678.15271 | E176: 6935.630542
A177: 0.2001995612 | B177: 170 | C177: 0.2 | D177: 34441.27586 | E177: 6888.255173
A178: 0.2562791541 | B178: 218 | C178: 0.2 | D178: 35391.78583 | E178: 7078.357166
A179: 0.2358379744 | B179: 200 | C179: 0.2 | D179: 34095.81744 | E179: 6819.163489
A180: 0.2748309696 | B180: 233 | C180: 0.2 | D180: 33088.94569 | E180: 6617.789138
A181: 0.1867187948 | B181: 158 | C181: 0.2 | D181: 22174.25299 | E181: 4434.850598
A182: 0.2318184339 | B182: 197 | C182: 0.2 | D182: 32250.50861 | E182: 6450.101722
A183: 0.2472812337 | B183: 210 | C183: 0.2 | D183: 34353.12597 | E183: 6870.625195
A184: 0.2935093746 | B184: 249 | C184: 0.2 | D184: 33572.42569 | E184: 6714.485138
A185: 0.2057531455 | B185: 175 | C185: 0.2 | D185: 26722.70592 | E185: 5344.541185
A186: 0.2104840472 | B186: 179 | C186: 0.2 | D186: 24904.14642 | E186: 4980.829283
A187: 0.2755641696 | B187: 234 | C187: 0.2 | D187: 39903.4571 | E187: 7980.691421
A188: 0.2666617588 | B188: 226 | C188: 0.2 | D188: 41407.90947 | E188: 8281.581893
A189: 0.253803802 | B189: 215 | C189: 0.2 | D189: 38290.67872 | E189: 7658.135744
A190: 0.2893150277 | B190: 246 | C190: 0.2 | D190: 39899.19431 | E190: 7979.838863
A191: 0.2699220339 | B191: 229 | C191: 0.2 | D191: 32895.4595 | E191: 6579.091899
A192: 0.2204544443 | B192: 187 | C192: 0.2 | D192: 30752.37721 | E192: 6150.475442
A193: 0.2305527695 | B193: 196 | C193: 0.2 | D193: 25505.54594 | E193: 5101.109188
A194: 0.2254780648 | B194: 191 | C194: 0.2 | D194: 28401.3174 | E194: 5680.26348
A195: 0.2853391106 | B195: 242 | C195: 0.2 | D195: 32442.28624 | E195: 6488.457249
A196: 0.2516013411 | B196: 214 | C196: 0.2 | D196: 34139.87258 | E196: 6827.974516
A197: 0.2492963176 | B197: 212 | C197: 0.2 | D197: 34671.06057 | E197: 6934.212113
A198: 0.2485306581 | B198: 211 | C198: 0.2 | D198: 33328.09397 | E198: 6665.618794
A199: 0.2148152236 | B199: 182 | C199: 0.2 | D199: 29185.05112 | E199: 5837.010224
A200: 0.2049588046 | B200: 174 | C200: 0.2 | D200: 32652.37959 | E200: 6530.475917
... 9801 more rows

Sheet Data sets ->

Sheet HV_Cables
A1: FEEDERID | B1: MXLOCATIONID | C1: DATECOMMISSIONED | D1: NOMINALVOLTAGE | E1: CABLESIZE | F1: CABLEMATERIAL | G1: CABLEINSULATION | H1: CORES | I1: LENGTH | J1: =SUBTOTAL(9,I2:I5110) -> 282136.6183 | K1: =SUMIFS(I:I,H:H,1,C:C,"<30682")/3 -> 31910.17253 | L1: =J1-K1 -> 250226.4458
A2: 11CA12 MARRARA | B2: HCA-117233 | D2: 11 | E2: 240 | F2: AL | G2: XLPE/NYL/PVC | I2: 0.74999999
A3: 11BE04 MCMILLANS | B3: HCA-106084 | C3: 1975-01-01 | D3: 11 | E3: 50 | F3: CU | G3: PILC | I3: 82.1902907
A4: 11BE01 LEANYER | B4: HCA-113807 | D4: 11 | E4: 240 | F4: AL | G4: XLPE/NYL/PVC | I4: 0.75
A5: 11BE04 MCMILLANS | B5: HCA-106065 | C5: 1975-01-01 | D5: 11 | E5: 185 | F5: CU | G5: PILC | I5: 25.24580282
A6: 11BE04 MCMILLANS | B6: HCA-106044 | C6: 1975-01-01 | D6: 11 | I6: 0.76471748
A7: 11BE06 KARAMA 1 | B7: HCA-106054 | C7: 1975-01-01 | D7: 11 | E7: 185 | F7: CU | G7: PILC | I7: 405.8180508
A8: 11BE06 KARAMA 1 | B8: HCA-106053 | C8: 1975-01-01 | D8: 11 | E8: 185 | F8: CU | G8: PILC | I8: 98.52846822
A9: 11BE06 KARAMA 1 | B9: HCA-106051 | C9: 1975-01-01 | D9: 11 | I9: 2.04
A10: 11BE06 KARAMA 1 | B10: HCA-106050 | C10: 1975-01-01 | D10: 11 | I10: 2.04
A11: 11BE06 KARAMA 1 | B11: HCA-106049 | C11: 1975-01-01 | D11: 11 | I11: 2.04
A12: 11BE06 KARAMA 1 | B12: HCA-106048 | C12: 1975-01-01 | D12: 11 | E12: 185 | F12: CU | G12: PILC | I12: 277.0407097
A13: 11BE06 KARAMA 1 | B13: HCA-106047 | C13: 1975-01-01 | D13: 11 | I13: 2.03895842
A14: 11BE06 KARAMA 1 | B14: HCA-106046 | C14: 1975-01-01 | D14: 11 | I14: 2.03895827
A15: 11BE06 KARAMA 1 | B15: HCA-106045 | C15: 1975-01-01 | D15: 11 | I15: 2.03895834
A16: 11BE06 KARAMA 1 | B16: HCA-106041 | C16: 1975-01-01 | D16: 11 | I16: 1.02
A17: 11BE06 KARAMA 1 | B17: HCA-106040 | C17: 1975-01-01 | D17: 11 | I17: 2.04
A18: 11BE06 KARAMA 1 | B18: HCA-106039 | C18: 1975-01-01 | D18: 11 | I18: 1.02
A19: 11BE06 KARAMA 1 | B19: HCA-106038 | C19: 1975-01-01 | D19: 11 | I19: 1.02
A20: 11BE06 KARAMA 1 | B20: HCA-106036 | C20: 1975-01-01 | D20: 11 | I20: 1.02
A21: 11BE06 KARAMA 1 | B21: HCA-106035 | C21: 1975-01-01 | D21: 11 | I21: 2.04
A22: 11BE06 KARAMA 1 | B22: HCA-106034 | C22: 1975-01-01 | D22: 11 | I22: 1.02
A23: 11BE06 KARAMA 1 | B23: HCA-106033 | C23: 1975-01-01 | D23: 11 | I23: 1.02
A24: 11BE06 KARAMA 1 | B24: HCA-106032 | C24: 1975-01-01 | D24: 11 | I24: 0.76
A25: 11BE06 KARAMA 1 | B25: HCA-106031 | C25: 1975-01-01 | D25: 11 | I25: 1.02
A26: 11BE06 KARAMA 1 | B26: HCA-106030 | C26: 1975-01-01 | D26: 11 | I26: 2.04
A27: 11BE06 KARAMA 1 | B27: HCA-106029 | C27: 1975-01-01 | D27: 11 | I27: 1.02
A28: 11BE06 KARAMA 1 | B28: HCA-106028 | C28: 1975-01-01 | D28: 11 | I28: 1.02
A29: 11BE06 KARAMA 1 | B29: HCA-106026 | C29: 1975-01-01 | D29: 11 | I29: 1.02
A30: 11BE06 KARAMA 1 | B30: HCA-106025 | C30: 1975-01-01 | D30: 11 | I30: 2.04
A31: 11BE06 KARAMA 1 | B31: HCA-106024 | C31: 1975-01-01 | D31: 11 | I31: 1.02
A32: 11BE06 KARAMA 1 | B32: HCA-106023 | C32: 1975-01-01 | D32: 11 | I32: 1.02
A33: 11BE06 KARAMA 1 | B33: HCA-106022 | C33: 1975-01-01 | D33: 11 | I33: 0.76
A34: 11CA10 MILLNER | B34: HCA-113381 | D34: 11 | E34: 240 | F34: AL | G34: XLPE/NYL/PVC | I34: 0.75
A35: 11CA19 CAS VILLAGE | B35: HCA-117296 | D35: 11 | E35: 240 | F35: AL | G35: XLPE/NYL/PVC | I35: 0.75 | M35: 30682
A36: 11BE06 KARAMA 1 | B36: HCA-114082 | C36: 1975-01-01 | D36: 11 | I36: 2
A37: 11BE06 KARAMA 1 | B37: HCA-117229 | C37: 1975-01-01 | D37: 11 | E37: 185 | F37: CU | G37: PILC | I37: 4.15770358
A38: 11BE06 KARAMA 1 | B38: HCA-117230 | C38: 1975-01-01 | D38: 11 | E38: 185 | F38: CU | G38: PILC | I38: 4.13296931
A39: 11BE16 ANULA | B39: HCA-101779 | C39: 1975-01-01 | D39: 11 | I39: 1.53
A40: 11CA21 NIGHTCLIFF 2 | B40: HCA-113714 | D40: 11 | E40: 240 | F40: AL | G40: XLPE/NYL/PVC | I40: 0.75
A41: 11LE12 MUIRHEAD | B41: HCA-113754 | D41: 11 | E41: 240 | F41: AL | G41: XLPE/NYL/PVC | I41: 0.75
A42: 11BE16 ANULA | B42: HCA-101774 | C42: 1975-01-01 | D42: 11 | I42: 3.06
A43: 11BE16 ANULA | B43: HCA-101775 | C43: 1975-01-01 | D43: 11 | I43: 3.06
A44: 11BE16 ANULA | B44: HCA-101776 | C44: 1975-01-01 | D44: 11 | I44: 3.06
A45: 11LE12 MUIRHEAD | B45: HCA-113761 | D45: 11 | E45: 240 | F45: AL | G45: XLPE/NYL/PVC | I45: 0.75
A46: 11BE16 ANULA | B46: HCA-101777 | C46: 1975-01-01 | D46: 11 | I46: 1.53
A47: 11BE16 ANULA | B47: HCA-101778 | C47: 1975-01-01 | D47: 11 | I47: 1.53
A48: 11CA00 NIGHTCLIFF 1 | B48: HCA-108521 | C48: 1975-01-01 | D48: 11 | E48: 50 | F48: CU | G48: PILC | I48: 1.53063549
A49: 11CA00 NIGHTCLIFF 1 | B49: HCA-108520 | C49: 1975-01-01 | D49: 11 | E49: 50 | F49: CU | G49: PILC | I49: 1.52874194
A50: 11CA00 NIGHTCLIFF 1 | B50: HCA-108519 | C50: 1975-01-01 | D50: 11 | E50: 50 | F50: CU | G50: PILC | I50: 4.84391898
A51: 11CA00 NIGHTCLIFF 1 | B51: HCA-108518 | C51: 1975-01-01 | D51: 11 | I51: 0.76418158
A52: 11CA00 NIGHTCLIFF 1 | B52: HCA-108517 | C52: 1975-01-01 | D52: 11 | E52: 185 | F52: CU | G52: PILC | I52: 96.37553176
A53: 11CA00 NIGHTCLIFF 1 | B53: HCA-108516 | C53: 1975-01-01 | D53: 11 | I53: 1.02
A54: 11CA00 NIGHTCLIFF 1 | B54: HCA-108515 | C54: 1975-01-01 | D54: 11 | I54: 2.04
A55: 11CA00 NIGHTCLIFF 1 | B55: HCA-108514 | C55: 1975-01-01 | D55: 11 | I55: 1.02
A56: 11CA00 NIGHTCLIFF 1 | B56: HCA-108513 | C56: 1975-01-01 | D56: 11 | I56: 1.02
A57: 11CA00 NIGHTCLIFF 1 | B57: HCA-108512 | C57: 1975-01-01 | D57: 11 | I57: 0.76
A58: 11CA00 NIGHTCLIFF 1 | B58: HCA-109314 | C58: 1975-01-01 | D58: 11 | E58: 50 | F58: CU | G58: PILC | H58: 3 | I58: 108.1112977
A59: 11CA00 NIGHTCLIFF 1 | B59: HCA-109313 | C59: 1975-01-01 | D59: 11 | I59: 1.01966981
A60: 11CA00 NIGHTCLIFF 1 | B60: HCA-109312 | C60: 1975-01-01 | D60: 11 | I60: 1.01966981
A61: 11CA00 NIGHTCLIFF 1 | B61: HCA-109311 | C61: 1975-01-01 | D61: 11 | I61: 0.76475235
A62: 11CA00 NIGHTCLIFF 1 | B62: HCA-103376 | C62: 1975-01-01 | D62: 11 | E62: 50 | F62: CU | G62: PILC | I62: 6.48
A63: 11CA00 NIGHTCLIFF 1 | B63: HCA-109462 | C63: 1975-01-01 | D63: 11 | E63: 400 | F63: AL | G63: PILC | I63: 14.72060802
A64: 11CA00 NIGHTCLIFF 1 | B64: HCA-103414 | C64: 1975-01-01 | D64: 11 | E64: 50 | F64: CU | G64: PILC | H64: 3 | I64: 45.95
A65: 11CA00 NIGHTCLIFF 1 | B65: HCA-103302 | C65: 1975-01-01 | D65: 11 | I65: 1.53
A66: 11CA00 NIGHTCLIFF 1 | B66: HCA-103303 | C66: 1975-01-01 | D66: 11 | I66: 3.06
A67: 11CA00 NIGHTCLIFF 1 | B67: HCA-103304 | C67: 1975-01-01 | D67: 11 | I67: 3.06
A68: 11CA00 NIGHTCLIFF 1 | B68: HCA-103309 | C68: 1975-01-01 | D68: 11 | I68: 0.76482563
A69: 11CA00 NIGHTCLIFF 1 | B69: HCA-103310 | C69: 1975-01-01 | D69: 11 | I69: 2.03853266
A70: 11CA00 NIGHTCLIFF 1 | B70: HCA-103311 | C70: 1975-01-01 | D70: 11 | I70: 2.03955226
A71: 11CA00 NIGHTCLIFF 1 | B71: HCA-103312 | C71: 1975-01-01 | D71: 11 | I71: 2.03851615
A72: 11LE12 MUIRHEAD | B72: HCA-117330 | D72: 11 | E72: 240 | F72: AL | G72: XLPE/NYL/PVC | I72: 0.75
A73: 11CA00 NIGHTCLIFF 1 | B73: HCA-103314 | C73: 1975-01-01 | D73: 11 | I73: 0.76
A74: 11CA00 NIGHTCLIFF 1 | B74: HCA-103315 | C74: 1975-01-01 | D74: 11 | E74: 400 | F74: AL | G74: PILC | I74: 173.7108423
A75: 11CA00 NIGHTCLIFF 1 | B75: HCA-103316 | C75: 1975-01-01 | D75: 11 | I75: 0.76
A76: 11CA00 NIGHTCLIFF 1 | B76: HCA-103317 | C76: 1975-01-01 | D76: 11 | I76: 1.02
A77: 11CA00 NIGHTCLIFF 1 | B77: HCA-103318 | C77: 1975-01-01 | D77: 11 | I77: 1.02
A78: 11CA00 NIGHTCLIFF 1 | B78: HCA-103319 | C78: 1975-01-01 | D78: 11 | I78: 2.04
A79: 11CA00 NIGHTCLIFF 1 | B79: HCA-103320 | C79: 1975-01-01 | D79: 11 | I79: 1.02
A80: 11CA00 NIGHTCLIFF 1 | B80: HCA-103321 | C80: 1975-01-01 | D80: 11 | I80: 2.04
A81: 11CA00 NIGHTCLIFF 1 | B81: HCA-103322 | C81: 1975-01-01 | D81: 11 | I81: 1.02
A82: 11CA00 NIGHTCLIFF 1 | B82: HCA-103323 | C82: 1975-01-01 | D82: 11 | E82: 50 | F82: CU | G82: PILC | H82: 3 | I82: 35.6
A83: 11CA00 NIGHTCLIFF 1 | B83: HCA-103326 | C83: 1975-01-01 | D83: 11 | E83: 400 | F83: AL | G83: PILC | I83: 105.962707
A84: 11CA00 NIGHTCLIFF 1 | B84: HCA-103327 | C84: 1975-01-01 | D84: 11 | E84: 400 | F84: AL | G84: PILC | I84: 40.70118746
A85: 11CA00 NIGHTCLIFF 1 | B85: HCA-103328 | C85: 1975-01-01 | D85: 11 | E85: 400 | F85: AL | G85: PILC | I85: 66.17333894
A86: 11CA00 NIGHTCLIFF 1 | B86: HCA-103366 | C86: 1975-01-01 | D86: 11 | E86: 400 | F86: CU | G86: PILC | I86: 3.06
A87: 11CA00 NIGHTCLIFF 1 | B87: HCA-103367 | C87: 1975-01-01 | D87: 11 | E87: 400 | F87: CU | G87: PILC | I87: 1.53
A88: 11CA00 NIGHTCLIFF 1 | B88: HCA-103368 | C88: 1975-01-01 | D88: 11 | E88: 400 | F88: CU | G88: PILC | I88: 1.53
A89: 11CA02 CAS SQUARE 2 | B89: HCA-109089 | C89: 1975-01-01 | D89: 11 | E89: 400 | F89: AL | G89: P/L | I89: 251.2
A90: 11CA02 CAS SQUARE 2 | B90: HCA-109096 | C90: 1975-01-01 | D90: 11 | I90: 2.04
A91: 11CA02 CAS SQUARE 2 | B91: HCA-109097 | C91: 1975-01-01 | D91: 11 | I91: 2.03
A92: 11CA02 CAS SQUARE 2 | B92: HCA-109098 | C92: 1975-01-01 | D92: 11 | I92: 2.04
A93: 11CA02 CAS SQUARE 2 | B93: HCA-109114 | C93: 1975-01-01 | D93: 11 | E93: 185 | F93: CU | G93: PILC | I93: 8.82
A94: 11CA02 CAS SQUARE 2 | B94: HCA-108984 | C94: 1975-01-01 | D94: 11 | I94: 4.5
A95: 11CA02 CAS SQUARE 2 | B95: HCA-108985 | C95: 1975-01-01 | D95: 11 | E95: 400 | F95: AL | G95: PILC | I95: 8.16
A96: 11CA02 CAS SQUARE 2 | B96: HCA-109155 | C96: 1975-01-01 | D96: 11 | E96: 400 | F96: AL | G96: PILC | H96: 3 | I96: 539.98
A97: 11CA02 CAS SQUARE 2 | B97: HCA-109183 | C97: 1975-01-01 | D97: 11 | E97: 400 | F97: CU | G97: P/L | H97: 3 | I97: 150.47
A98: 11CA02 CAS SQUARE 2 | B98: HCA-108969 | C98: 1975-01-01 | D98: 11 | E98: 400 | F98: AL | G98: PILC | H98: 3 | I98: 28.45
A99: 11CA02 CAS SQUARE 2 | B99: HCA-108976 | C99: 1975-01-01 | D99: 11 | I99: 0.76
A100: 11CA02 CAS SQUARE 2 | B100: HCA-108977 | C100: 1975-01-01 | D100: 11 | I100: 1.02
A101: 11CA02 CAS SQUARE 2 | B101: HCA-108978 | C101: 1975-01-01 | D101: 11 | I101: 1.02
A102: 11CA02 CAS SQUARE 2 | B102: HCA-108979 | C102: 1975-01-01 | D102: 11 | I102: 0.76
A103: 11CA02 CAS SQUARE 2 | B103: HCA-108980 | C103: 1975-01-01 | D103: 11 | I103: 4.84
A104: 11CA02 CAS SQUARE 2 | B104: HCA-108981 | C104: 1975-01-01 | D104: 11 | I104: 1.53
A105: 11CA02 CAS SQUARE 2 | B105: HCA-108982 | C105: 1975-01-01 | D105: 11 | I105: 0.76
A106: 11CA02 CAS SQUARE 2 | B106: HCA-108983 | C106: 1975-01-01 | D106: 11 | I106: 4.84
A107: 11LE12 MUIRHEAD | B107: HCA-113782 | D107: 11 | E107: 240 | F107: AL | G107: XLPE/NYL/PVC | I107: 0.75
A108: 11CA03 BRADSHAW | B108: HCA-111043 | C108: 1975-01-01 | D108: 11 | I108: 1.5296139
A109: 11CA03 BRADSHAW | B109: HCA-111042 | C109: 1975-01-01 | D109: 11 | I109: 1.529614
A110: 11CA03 BRADSHAW | B110: HCA-111214 | C110: 1975-01-01 | D110: 11 | I110: 1.02974147
A111: 11CA03 BRADSHAW | B111: HCA-111213 | C111: 1975-01-01 | D111: 11 | I111: 2.03941764
A112: 11CA03 BRADSHAW | B112: HCA-111212 | C112: 1975-01-01 | D112: 11 | I112: 1.03092531
A113: 11CA03 BRADSHAW | B113: HCA-111211 | C113: 1975-01-01 | D113: 11 | I113: 1.02030692
A114: 11CA03 BRADSHAW | B114: HCA-111210 | C114: 1975-01-01 | D114: 11 | I114: 0.7647298
A115: 11CA03 BRADSHAW | B115: HCA-109200 | C115: 1975-01-01 | D115: 11 | E115: 400 | F115: AL | G115: PILC | I115: 63.37
A116: 11CA03 BRADSHAW | B116: HCA-109153 | C116: 1975-01-01 | D116: 11 | I116: 1.71
A117: 11CA03 BRADSHAW | B117: HCA-109152 | C117: 1975-01-01 | D117: 11 | I117: 1.53
A118: 11CA03 BRADSHAW | B118: HCA-109149 | C118: 1975-01-01 | D118: 11 | I118: 3.06
A119: 11CA03 BRADSHAW | B119: HCA-109148 | C119: 1975-01-01 | D119: 11 | I119: 1.53
A120: 11CA03 BRADSHAW | B120: HCA-109147 | C120: 1975-01-01 | D120: 11 | I120: 1.53
A121: 11CA03 BRADSHAW | B121: HCA-109146 | C121: 1975-01-01 | D121: 11 | I121: 1.53
A122: 11CA03 BRADSHAW | B122: HCA-109144 | C122: 1975-01-01 | D122: 11 | I122: 1.67
A123: 11CA03 BRADSHAW | B123: HCA-109135 | C123: 1975-01-01 | D123: 11 | I123: 1.53
A124: 11CA03 BRADSHAW | B124: HCA-109134 | C124: 1975-01-01 | D124: 11 | I124: 1.53
A125: 11CA03 BRADSHAW | B125: HCA-109133 | C125: 1975-01-01 | D125: 11 | I125: 1.53
A126: 11CA03 BRADSHAW | B126: HCA-109132 | C126: 1975-01-01 | D126: 11 | I126: 3.06
A127: 11CA03 BRADSHAW | B127: HCA-109131 | C127: 1975-01-01 | D127: 11 | I127: 3.06
A128: 11CA03 BRADSHAW | B128: HCA-109124 | C128: 1975-01-01 | D128: 11 | E128: 400 | F128: AL | G128: PILC | H128: 3 | I128: 49.31
A129: 11CA03 BRADSHAW | B129: HCA-111176 | C129: 1975-01-01 | D129: 11 | I129: 1.01927111
A130: 11CA03 BRADSHAW | B130: HCA-111175 | C130: 1975-01-01 | D130: 11 | I130: 1.0201409
A131: 11CA03 BRADSHAW | B131: HCA-111174 | C131: 1975-01-01 | D131: 11 | I131: 0.76488812
A132: 11CA03 BRADSHAW | B132: HCA-111173 | C132: 1975-01-01 | D132: 11 | I132: 1.0195779
A133: 11CA03 BRADSHAW | B133: HCA-111172 | C133: 1975-01-01 | D133: 11 | I133: 2.03975595
A134: 11CA03 BRADSHAW | B134: HCA-111171 | C134: 1975-01-01 | D134: 11 | I134: 1.01922247
A135: 11CA03 BRADSHAW | B135: HCA-111170 | C135: 1975-01-01 | D135: 11 | I135: 1.01922251
A136: 11CA03 BRADSHAW | B136: HCA-111169 | C136: 1975-01-01 | D136: 11 | I136: 0.76501138
A137: 11CA03 BRADSHAW | B137: HCA-111162 | C137: 1975-01-01 | D137: 11 | I137: 2.0395161
A138: 11CA03 BRADSHAW | B138: HCA-111161 | C138: 1975-01-01 | D138: 11 | I138: 1.01975803
A139: 11CA03 BRADSHAW | B139: HCA-111160 | C139: 1975-01-01 | D139: 11 | I139: 1.01975806
A140: 11CA03 BRADSHAW | B140: HCA-111159 | C140: 1975-01-01 | D140: 11 | I140: 0.76470759
A141: 11CA03 BRADSHAW | B141: HCA-111158 | C141: 1975-01-01 | D141: 11 | I141: 1.01895253
A142: 11CA03 BRADSHAW | B142: HCA-111157 | C142: 1975-01-01 | D142: 11 | I142: 2.03929299
A143: 11CA03 BRADSHAW | B143: HCA-111156 | C143: 1975-01-01 | D143: 11 | I143: 1.01895261
A144: 11LE12 MUIRHEAD | B144: HCA-117004 | D144: 11 | E144: 240 | F144: AL | G144: XLPE/NYL/PVC | I144: 0.75
A145: 11LE12 MUIRHEAD | B145: HCA-117011 | D145: 11 | E145: 240 | F145: AL | G145: XLPE/NYL/PVC | I145: 0.75
A146: 11LE12 MUIRHEAD | B146: HCA-113732 | D146: 11 | E146: 240 | F146: AL | G146: XLPE/NYL/PVC | I146: 0.75
A147: 11WN22 LUDMILLA | B147: HCA-113951 | D147: 11 | E147: 240 | F147: AL | G147: XLPE/NYL/PVC | I147: 0.75
A148: 11CA12 MARRARA | B148: HCA-117363 | D148: 11 | E148: 240 | F148: AL | G148: XLPE/NYL/PVC | I148: 0.75000002
A149: 11CA10 MILLNER | B149: HCA-108598 | C149: 1975-01-01 | D149: 11 | E149: 240 | F149: AL | G149: XLPE/NYL/PVC | I149: 0.76
A150: 11CA03 BRADSHAW | B150: HCA-117078 | C150: 1975-01-01 | D150: 11 | E150: 95 | F150: AL | G150: PILC | H150: 1 | I150: 1.39197462
A151: 11CA10 MILLNER | B151: HCA-108509 | C151: 1975-01-01 | D151: 11 | E151: 240 | F151: AL | G151: XLPE/NYL/PVC | I151: 0.77
A152: 11CA12 MARRARA | B152: HCA-117365 | D152: 11 | E152: 240 | F152: AL | G152: XLPE/NYL/PVC | I152: 0.99999999
A153: 11CA03 BRADSHAW | B153: HCA-117080 | C153: 1975-01-01 | D153: 11 | E153: 95 | F153: AL | G153: PILC | H153: 1 | I153: 1.61456579
A154: 11CA03 BRADSHAW | B154: HCA-111155 | C154: 1975-01-01 | D154: 11 | I154: 1.0203405
A155: 11CA03 BRADSHAW | B155: HCA-111154 | C155: 1975-01-01 | D155: 11 | I155: 0.76421448
A156: 11CA03 BRADSHAW | B156: HCA-111332 | C156: 1975-01-01 | D156: 11 | E156: 95 | F156: AL | G156: PILC | H156: 1 | I156: 486.9328361
A157: 11CA19 CAS VILLAGE | B157: HCA-117298 | D157: 11 | E157: 240 | F157: AL | G157: XLPE/NYL/PVC | I157: 0.99999999
A158: 11LE12 MUIRHEAD | B158: HCA-117015 | D158: 11 | E158: 240 | F158: AL | G158: XLPE/NYL/PVC | I158: 0.99999999
A159: 11CA03 BRADSHAW | B159: HCA-111092 | C159: 1975-01-01 | D159: 11 | E159: 400 | F159: AL | G159: PILC | H159: 1 | I159: 379.5029013
A160: 11LE12 MUIRHEAD | B160: HCA-117332 | D160: 11 | E160: 240 | F160: AL | G160: XLPE/NYL/PVC | I160: 0.99999999
A161: 11LE12 MUIRHEAD | B161: HCA-117013 | D161: 11 | E161: 240 | F161: AL | G161: XLPE/NYL/PVC | I161: 0.99999999
A162: 11CA13 WANGURI | B162: HCA-114636 | C162: 1975-01-01 | D162: 11 | E162: 300 | F162: AL | G162: XLPE/NYL/PVC | H162: 3 | I162: 1
A163: 11CA03 BRADSHAW | B163: HCA-111316 | C163: 1975-01-01 | D163: 11 | E163: 400 | F163: AL | G163: PILC | I163: 138.38
A164: 11CA24 PARER | B164: HCA-115802 | C164: 1975-01-01 | D164: 11 | E164: 400 | F164: AL | G164: XLPE/PVC | I164: 1
A165: 11CA03 BRADSHAW | B165: HCA-111177 | C165: 1975-01-01 | D165: 11 | I165: 2.03941159
A166: 11CA03 BRADSHAW | B166: HCA-108970 | C166: 1975-01-01 | D166: 11 | E166: 400 | F166: AL | G166: PILC | I166: 75.72
A167: 11CA03 BRADSHAW | B167: HCA-111178 | C167: 1975-01-01 | D167: 11 | I167: 1.01927102
A168: 11CA03 BRADSHAW | B168: HCA-111163 | C168: 1975-01-01 | D168: 11 | I168: 1.01975804
A169: 11BE01 LEANYER | B169: HCA-113809 | D169: 11 | E169: 240 | F169: AL | G169: XLPE/NYL/PVC | I169: 1
A170: 11BE01 LEANYER | B170: HCA-113808 | D170: 11 | E170: 240 | F170: AL | G170: XLPE/NYL/PVC | I170: 1
A171: 11CA10 MILLNER | B171: HCA-113382 | D171: 11 | E171: 240 | F171: AL | G171: XLPE/NYL/PVC | I171: 1
A172: 11CA04 UNIVERSITY | B172: HCA-104555 | C172: 1975-01-01 | D172: 11 | E172: 400 | F172: AL | G172: PILC | H172: 3 | I172: 50.9
A173: 11CA10 MILLNER | B173: HCA-113383 | D173: 11 | E173: 240 | F173: AL | G173: XLPE/NYL/PVC | I173: 1
A174: 11CA04 UNIVERSITY | B174: HCA-109069 | C174: 1975-01-01 | D174: 11 | I174: 1.53
A175: 11CA04 UNIVERSITY | B175: HCA-100022 | C175: 1975-01-01 | D175: 11 | E175: 400 | F175: AL | G175: PILC | H175: 3 | I175: 774.28
A176: 11CA04 UNIVERSITY | B176: HCA-100013 | C176: 1975-01-01 | D176: 11 | E176: 400 | F176: AL | G176: PILC | H176: 3 | I176: 643.56
A177: 11CA04 UNIVERSITY | B177: HCA-109067 | C177: 1975-01-01 | D177: 11 | I177: 3.06
A178: 11CA04 UNIVERSITY | B178: HCA-100012 | C178: 1975-01-01 | D178: 11 | E178: 400 | F178: AL | G178: PILC | H178: 3 | I178: 442.15
A179: 11CA04 UNIVERSITY | B179: HCA-100014 | C179: 1975-01-01 | D179: 11 | E179: 400 | F179: AL | G179: PILC | H179: 3 | I179: 363.92
A180: 11CA04 UNIVERSITY | B180: HCA-109066 | C180: 1975-01-01 | D180: 11 | I180: 3.06
A181: 11CA07 JINGILI | B181: HCA-104477 | C181: 1975-01-01 | D181: 11 | I181: 0.76471236
A182: 11CA07 JINGILI | B182: HCA-104519 | C182: 1975-01-01 | D182: 11 | E182: 50 | F182: CU | G182: PILC | I182: 78.03582893
A183: 11CA07 JINGILI | B183: HCA-104489 | C183: 1975-01-01 | D183: 11 | E183: 300 | F183: AL | G183: PILC | H183: 3 | I183: 124.2727898
A184: 11CA07 JINGILI | B184: HCA-112753 | C184: 1975-01-01 | D184: 11 | E184: 300 | F184: AL | G184: PILC | I184: 325.7907651
A185: 11CA07 JINGILI | B185: HCA-104478 | C185: 1975-01-01 | D185: 11 | I185: 0.7653236
A186: 11CA07 JINGILI | B186: HCA-104479 | C186: 1975-01-01 | D186: 11 | I186: 1.01983503
A187: 11CA07 JINGILI | B187: HCA-104480 | C187: 1975-01-01 | D187: 11 | I187: 1.01983501
A188: 11CA10 MILLNER | B188: HCA-113385 | D188: 11 | E188: 240 | F188: AL | G188: XLPE/NYL/PVC | I188: 1
A189: 11CA08 NTHLAKES | B189: HCA-101816 | C189: 1975-01-01 | D189: 11 | E189: 400 | F189: AL | G189: PILC | I189: 583.51
A190: 11CA08 NTHLAKES | B190: HCA-115880 | C190: 1975-01-01 | D190: 11 | I190: 1
A191: 11CA08 NTHLAKES | B191: HCA-115879 | C191: 1975-01-01 | D191: 11 | I191: 1
A192: 11CA12 MARRARA | B192: HCA-117235 | D192: 11 | E192: 240 | F192: AL | G192: XLPE/NYL/PVC | I192: 1
A193: 11CA08 NTHLAKES | B193: HCA-101817 | C193: 1975-01-01 | D193: 11 | E193: 400 | F193: AL | G193: PILC | I193: 201.07
A194: 11CA08 NTHLAKES | B194: HCA-101663 | C194: 1975-01-01 | D194: 11 | I194: 1.02
A195: 11CA08 NTHLAKES | B195: HCA-101664 | C195: 1975-01-01 | D195: 11 | I195: 2.04
A196: 11CA08 NTHLAKES | B196: HCA-101665 | C196: 1975-01-01 | D196: 11 | I196: 1.02
A197: 11CA08 NTHLAKES | B197: HCA-101667 | C197: 1975-01-01 | D197: 11 | I197: 1.02
A198: 11CA08 NTHLAKES | B198: HCA-101668 | C198: 1975-01-01 | D198: 11 | I198: 1.02
A199: 11CA08 NTHLAKES | B199: HCA-101669 | C199: 1975-01-01 | D199: 11 | I199: 2.04
A200: 11CA08 NTHLAKES | B200: HCA-101670 | C200: 1975-01-01 | D200: 11 | I200: 1.02
... 4910 more rows

Sheet XPLE Cables
A1: FEEDERID | B1: MXLOCATIONID | C1: DATECOMMISSIONED | D1: NOMINALVOLTAGE | E1: CABLESIZE | F1: CABLEMATERIAL | G1: CABLEINSULATION | H1: CORES | I1: LENGTH
A2: 11BE01 LEANYER | B2: HCA-113807 | D2: 11 | E2: 240 | F2: AL | G2: XLPE/NYL/PVC | I2: 0.75
A3: 11BE01 LEANYER | B3: HCA-113809 | D3: 11 | E3: 240 | F3: AL | G3: XLPE/NYL/PVC | I3: 1
A4: 11BE01 LEANYER | B4: HCA-113808 | D4: 11 | E4: 240 | F4: AL | G4: XLPE/NYL/PVC | I4: 1
A5: 11BE01 LEANYER | B5: HCA-113814 | D5: 11 | E5: 240 | F5: AL | G5: XLPE/NYL/PVC | I5: 1.5
A6: 11BE01 LEANYER | B6: HCA-113812 | D6: 11 | E6: 240 | F6: AL | G6: XLPE/NYL/PVC | I6: 1.5
A7: 11BE01 LEANYER | B7: HCA-113811 | D7: 11 | E7: 240 | F7: AL | G7: XLPE/NYL/PVC | I7: 1.5
A8: 11BE01 LEANYER | B8: HCA-113813 | D8: 11 | E8: 240 | F8: AL | G8: XLPE/NYL/PVC | I8: 3
A9: 11BE01 LEANYER | B9: HCA-113810 | D9: 11 | E9: 240 | F9: AL | G9: XLPE/NYL/PVC | I9: 3
A10: 11BE01 LEANYER | B10: HCA-113790 | C10: 1982-01-01 | D10: 11 | E10: 240 | F10: AL | G10: XLPE/PVC | I10: 9.91
A11: 11BE01 LEANYER | B11: HCA-108070 | C11: 1982-01-01 | D11: 11 | E11: 240 | F11: AL | G11: XLPE/PVC | I11: 52
A12: 11BE01 LEANYER | B12: HCA-108069 | C12: 1982-01-01 | D12: 11 | E12: 400 | F12: AL | G12: XLPE/PVC | I12: 56.49
A13: 11BE01 LEANYER | B13: HCA-107496 | C13: 1982-01-01 | D13: 11 | E13: 240 | F13: AL | G13: XLPE/PVC | I13: 65.26
A14: 11BE01 LEANYER | B14: HCA-108194 | C14: 1982-01-01 | D14: 11 | E14: 35 | F14: AL | G14: XLPE/PVC | H14: 1 | I14: 378.19
A15: 11BE01 LEANYER | B15: HCA-111556 | C15: 1980-01-01 | D15: 11 | E15: 400 | F15: AL | G15: XLPE/PVC | I15: 404.8
A16: 11BE01 LEANYER | B16: HCA-107497 | C16: 1982-01-01 | D16: 11 | E16: 400 | F16: AL | G16: XLPE/PVC | I16: 494.88
A17: 11BE01 LEANYER | B17: HCA-113803 | C17: 1982-01-01 | D17: 11 | E17: 400 | F17: AL | G17: XLPE/PVC | I17: 547.74
A18: 11BE01 LEANYER | B18: HCA-105616 | C18: 1982-01-01 | D18: 11 | E18: 400 | F18: AL | G18: XLPE/PVC | I18: 1671.4
A19: 11BE01 LEANYER | B19: HCA-106069 | C19: 1975-01-01 | D19: 11 | E19: 400 | F19: AL | G19: XLPE/PVC | I19: 1890.91
A20: 11BE04 MCMILLANS | B20: HCA-106067 | C20: 1975-01-01 | D20: 11 | E20: 400 | F20: AL | G20: XLPE/PVC | I20: 28.57828559
A21: 11BE04 MCMILLANS | B21: HCA-108357 | C21: 1982-01-01 | D21: 11 | E21: 95 | F21: AL | G21: XLPE/PVC | H21: 1 | I21: 120.408894
A22: 11BE04 MCMILLANS | B22: HCA-108356 | C22: 1982-01-01 | D22: 11 | E22: 35 | F22: AL | G22: XLPE/PVC | H22: 1 | I22: 137.5298963
A23: 11BE04 MCMILLANS | B23: HCA-111573 | C23: 1980-01-01 | D23: 11 | E23: 400 | F23: AL | G23: XLPE/PVC | I23: 407.4701437
A24: 11BE06 KARAMA 1 | B24: HCA-105462 | C24: 1982-01-01 | D24: 6.6 | E24: 35 | F24: AL | G24: XLPE/PVC | I24: 6.36542181
A25: 11BE06 KARAMA 1 | B25: HCA-105457 | C25: 1982-01-01 | D25: 6.6 | E25: 35 | F25: AL | G25: XLPE/PVC | I25: 7.79768864
A26: 11BE06 KARAMA 1 | B26: HCA-105558 | C26: 1982-01-01 | D26: 11 | E26: 35 | F26: AL | G26: XLPE/PVC | I26: 9.45
A27: 11BE06 KARAMA 1 | B27: HCA-105443 | C27: 1982-01-01 | D27: 6.6 | E27: 35 | F27: AL | G27: XLPE/PVC | I27: 9.49050102
A28: 11BE06 KARAMA 1 | B28: HCA-105562 | C28: 1982-01-01 | D28: 6.6 | E28: 240 | F28: AL | G28: XLPE/PVC | H28: 1 | I28: 11.11808325
A29: 11BE06 KARAMA 1 | B29: HCA-105483 | C29: 1982-01-01 | D29: 6.6 | E29: 35 | F29: AL | G29: XLPE/PVC | I29: 22.95066127
A30: 11BE06 KARAMA 1 | B30: HCA-105478 | C30: 1982-01-01 | D30: 6.6 | E30: 95 | F30: AL | G30: XLPE/PVC | I30: 30.06121882
A31: 11BE06 KARAMA 1 | B31: HCA-105361 | C31: 1982-01-01 | D31: 6.6 | E31: 35 | F31: AL | G31: XLPE/PVC | H31: 1 | I31: 41.81927708
A32: 11BE06 KARAMA 1 | B32: HCA-108182 | C32: 1982-01-01 | D32: 11 | E32: 240 | F32: AL | G32: XLPE/PVC | I32: 42.95167948
A33: 11BE06 KARAMA 1 | B33: HCA-105273 | C33: 1982-01-01 | D33: 6.6 | E33: 35 | F33: AL | G33: XLPE/PVC | H33: 1 | I33: 52.16969944
A34: 11BE06 KARAMA 1 | B34: HCA-105452 | C34: 1982-01-01 | D34: 6.6 | E34: 35 | F34: AL | G34: XLPE/PVC | H34: 1 | I34: 57.35153576
A35: 11BE06 KARAMA 1 | B35: HCA-105276 | C35: 1982-01-01 | D35: 6.6 | E35: 35 | F35: AL | G35: XLPE/PVC | H35: 1 | I35: 90.29556086
A36: 11BE06 KARAMA 1 | B36: HCA-105560 | C36: 1982-01-01 | D36: 6.6 | E36: 35 | F36: AL | G36: XLPE/PVC | H36: 1 | I36: 95.9318556
A37: 11BE06 KARAMA 1 | B37: HCA-105292 | C37: 1982-01-01 | D37: 6.6 | E37: 35 | F37: AL | G37: XLPE/PVC | H37: 1 | I37: 97.1873349
A38: 11BE06 KARAMA 1 | B38: HCA-105293 | C38: 1982-01-01 | D38: 6.6 | E38: 35 | F38: AL | G38: XLPE/PVC | H38: 1 | I38: 98.22896821
A39: 11BE06 KARAMA 1 | B39: HCA-105614 | C39: 1982-01-01 | D39: 6.6 | E39: 35 | F39: AL | G39: XLPE/PVC | H39: 1 | I39: 100.092594
A40: 11BE06 KARAMA 1 | B40: HCA-105282 | C40: 1982-01-01 | D40: 6.6 | E40: 35 | F40: AL | G40: XLPE/PVC | H40: 1 | I40: 101.9616489
A41: 11BE06 KARAMA 1 | B41: HCA-105289 | C41: 1982-01-01 | D41: 6.6 | E41: 35 | F41: AL | G41: XLPE/PVC | H41: 1 | I41: 102.4795726
A42: 11BE06 KARAMA 1 | B42: HCA-105285 | C42: 1982-01-01 | D42: 6.6 | E42: 35 | F42: AL | G42: XLPE/PVC | H42: 1 | I42: 102.5083574
A43: 11BE06 KARAMA 1 | B43: HCA-105621 | C43: 1982-01-01 | D43: 6.6 | E43: 35 | F43: AL | G43: XLPE/PVC | H43: 1 | I43: 103.776665
A44: 11BE06 KARAMA 1 | B44: HCA-105351 | C44: 1982-01-01 | D44: 6.6 | E44: 35 | F44: AL | G44: XLPE/PVC | H44: 1 | I44: 106.3810352
A45: 11BE06 KARAMA 1 | B45: HCA-105283 | C45: 1982-01-01 | D45: 6.6 | E45: 35 | F45: AL | G45: XLPE/PVC | H45: 1 | I45: 106.8844917
A46: 11BE06 KARAMA 1 | B46: HCA-105636 | C46: 1982-01-01 | D46: 6.6 | E46: 35 | F46: AL | G46: XLPE/PVC | H46: 1 | I46: 109.2165223
A47: 11BE06 KARAMA 1 | B47: HCA-105271 | C47: 1982-01-01 | D47: 6.6 | E47: 35 | F47: AL | G47: XLPE/PVC | H47: 1 | I47: 110.1415667
A48: 11BE06 KARAMA 1 | B48: HCA-105279 | C48: 1982-01-01 | D48: 6.6 | E48: 35 | F48: AL | G48: XLPE/PVC | H48: 1 | I48: 112.3476192
A49: 11BE06 KARAMA 1 | B49: HCA-105266 | C49: 1982-01-01 | D49: 6.6 | E49: 35 | F49: AL | G49: XLPE/PVC | H49: 1 | I49: 113.7548093
A50: 11BE06 KARAMA 1 | B50: HCA-105576 | C50: 1982-01-01 | D50: 6.6 | E50: 35 | F50: AL | G50: XLPE/PVC | H50: 1 | I50: 120.9783664
A51: 11BE06 KARAMA 1 | B51: HCA-105278 | C51: 1982-01-01 | D51: 6.6 | E51: 35 | F51: AL | G51: XLPE/PVC | H51: 1 | I51: 126.5986336
A52: 11BE06 KARAMA 1 | B52: HCA-105290 | C52: 1982-01-01 | D52: 6.6 | E52: 35 | F52: AL | G52: XLPE/PVC | H52: 1 | I52: 128.2448485
A53: 11BE06 KARAMA 1 | B53: HCA-105415 | C53: 1982-01-01 | D53: 6.6 | E53: 35 | F53: AL | G53: XLPE/PVC | H53: 1 | I53: 129.2527359
A54: 11BE06 KARAMA 1 | B54: HCA-105453 | C54: 1982-01-01 | D54: 6.6 | E54: 35 | F54: AL | G54: XLPE/PVC | H54: 1 | I54: 130.1738547
A55: 11BE06 KARAMA 1 | B55: HCA-105563 | C55: 1982-01-01 | D55: 6.6 | E55: 35 | F55: AL | G55: XLPE/PVC | H55: 1 | I55: 135.4981246
A56: 11BE06 KARAMA 1 | B56: HCA-105591 | C56: 1982-01-01 | D56: 6.6 | E56: 35 | F56: AL | G56: XLPE/PVC | H56: 1 | I56: 138.9603067
A57: 11BE06 KARAMA 1 | B57: HCA-105291 | C57: 1982-01-01 | D57: 6.6 | E57: 35 | F57: AL | G57: XLPE/PVC | H57: 1 | I57: 140.2761611
A58: 11BE06 KARAMA 1 | B58: HCA-105281 | C58: 1982-01-01 | D58: 6.6 | E58: 35 | F58: AL | G58: XLPE/PVC | H58: 1 | I58: 140.7745234
A59: 11BE06 KARAMA 1 | B59: HCA-105414 | C59: 1982-01-01 | D59: 6.6 | E59: 35 | F59: AL | G59: XLPE/PVC | H59: 1 | I59: 143.2542173
A60: 11BE06 KARAMA 1 | B60: HCA-105294 | C60: 1982-01-01 | D60: 6.6 | E60: 35 | F60: AL | G60: XLPE/PVC | H60: 1 | I60: 145.6650224
A61: 11BE06 KARAMA 1 | B61: HCA-105619 | C61: 1982-01-01 | D61: 6.6 | E61: 35 | F61: AL | G61: XLPE/PVC | H61: 1 | I61: 148.0747768
A62: 11BE06 KARAMA 1 | B62: HCA-105623 | C62: 1982-01-01 | D62: 6.6 | E62: 35 | F62: AL | G62: XLPE/PVC | H62: 1 | I62: 153.4923622
A63: 11BE06 KARAMA 1 | B63: HCA-105624 | C63: 1982-01-01 | D63: 6.6 | E63: 35 | F63: AL | G63: XLPE/PVC | H63: 1 | I63: 155.568617
A64: 11BE06 KARAMA 1 | B64: HCA-105286 | C64: 1982-01-01 | D64: 6.6 | E64: 35 | F64: AL | G64: XLPE/PVC | H64: 1 | I64: 156.3583049
A65: 11BE06 KARAMA 1 | B65: HCA-105274 | C65: 1982-01-01 | D65: 6.6 | E65: 35 | F65: AL | G65: XLPE/PVC | H65: 1 | I65: 156.521975
A66: 11BE06 KARAMA 1 | B66: HCA-105549 | C66: 1982-01-01 | D66: 6.6 | E66: 35 | F66: AL | G66: XLPE/PVC | H66: 1 | I66: 159.3369564
A67: 11BE06 KARAMA 1 | B67: HCA-105597 | C67: 1982-01-01 | D67: 6.6 | E67: 240 | F67: AL | G67: XLPE/PVC | H67: 1 | I67: 159.9157915
A68: 11BE06 KARAMA 1 | B68: HCA-105268 | C68: 1982-01-01 | D68: 6.6 | E68: 35 | F68: AL | G68: XLPE/PVC | H68: 1 | I68: 161.1946338
A69: 11BE06 KARAMA 1 | B69: HCA-105543 | C69: 1982-01-01 | D69: 6.6 | E69: 35 | F69: AL | G69: XLPE/PVC | H69: 1 | I69: 167.5536428
A70: 11BE06 KARAMA 1 | B70: HCA-105545 | C70: 1982-01-01 | D70: 11 | E70: 240 | F70: AL | G70: XLPE/PVC | H70: 1 | I70: 180.674097
A71: 11BE06 KARAMA 1 | B71: HCA-105284 | C71: 1982-01-01 | D71: 6.6 | E71: 35 | F71: AL | G71: XLPE/PVC | H71: 1 | I71: 181.6414767
A72: 11BE06 KARAMA 1 | B72: HCA-105458 | C72: 1982-01-01 | D72: 6.6 | E72: 35 | F72: AL | G72: XLPE/PVC | H72: 1 | I72: 182.4994561
A73: 11BE06 KARAMA 1 | B73: HCA-105546 | C73: 1982-01-01 | D73: 6.6 | E73: 35 | F73: AL | G73: XLPE/PVC | H73: 1 | I73: 196.6261447
A74: 11BE06 KARAMA 1 | B74: HCA-105643 | C74: 1982-01-01 | D74: 11 | E74: 95 | F74: AL | G74: XLPE/PVC | H74: 1 | I74: 211.0854895
A75: 11BE06 KARAMA 1 | B75: HCA-105270 | C75: 1982-01-01 | D75: 6.6 | E75: 35 | F75: AL | G75: XLPE/PVC | H75: 1 | I75: 211.3407818
A76: 11BE06 KARAMA 1 | B76: HCA-117283 | C76: 1982-01-01 | D76: 11 | E76: 400 | F76: AL | G76: XLPE/PVC | I76: 213.0067146
A77: 11BE06 KARAMA 1 | B77: HCA-105590 | C77: 1982-01-01 | D77: 6.6 | E77: 35 | F77: AL | G77: XLPE/PVC | H77: 1 | I77: 214.125571
A78: 11BE06 KARAMA 1 | B78: HCA-105287 | C78: 1982-01-01 | D78: 6.6 | E78: 35 | F78: AL | G78: XLPE/PVC | H78: 1 | I78: 214.5842243
A79: 11BE06 KARAMA 1 | B79: HCA-105605 | C79: 1982-01-01 | D79: 6.6 | E79: 35 | F79: AL | G79: XLPE/PVC | H79: 1 | I79: 220.5126191
A80: 11BE06 KARAMA 1 | B80: HCA-105479 | C80: 1982-01-01 | D80: 6.6 | E80: 35 | F80: AL | G80: XLPE/PVC | H80: 1 | I80: 222.9465693
A81: 11BE06 KARAMA 1 | B81: HCA-105288 | C81: 1982-01-01 | D81: 6.6 | E81: 35 | F81: AL | G81: XLPE/PVC | H81: 1 | I81: 223.0457194
A82: 11BE06 KARAMA 1 | B82: HCA-105275 | C82: 1982-01-01 | D82: 6.6 | E82: 35 | F82: AL | G82: XLPE/PVC | H82: 1 | I82: 227.5370347
A83: 11BE06 KARAMA 1 | B83: HCA-105267 | C83: 1982-01-01 | D83: 6.6 | E83: 35 | F83: AL | G83: XLPE/PVC | H83: 1 | I83: 228.1760685
A84: 11BE06 KARAMA 1 | B84: HCA-105565 | C84: 1982-01-01 | D84: 11 | E84: 240 | F84: AL | G84: XLPE/PVC | I84: 229.6521106
A85: 11BE06 KARAMA 1 | B85: HCA-105577 | C85: 1982-01-01 | D85: 6.6 | E85: 35 | F85: AL | G85: XLPE/PVC | I85: 229.77877
A86: 11BE06 KARAMA 1 | B86: HCA-105599 | C86: 1982-01-01 | D86: 6.6 | E86: 35 | F86: AL | G86: XLPE/PVC | H86: 1 | I86: 240.5737364
A87: 11BE06 KARAMA 1 | B87: HCA-105297 | C87: 1982-01-01 | D87: 6.6 | E87: 35 | F87: AL | G87: XLPE/PVC | H87: 1 | I87: 244.103471
A88: 11BE06 KARAMA 1 | B88: HCA-105272 | C88: 1982-01-01 | D88: 6.6 | E88: 35 | F88: AL | G88: XLPE/PVC | H88: 1 | I88: 256.3223663
A89: 11BE06 KARAMA 1 | B89: HCA-105295 | C89: 1982-01-01 | D89: 6.6 | E89: 35 | F89: AL | G89: XLPE/PVC | H89: 1 | I89: 257.7175683
A90: 11BE06 KARAMA 1 | B90: HCA-105642 | C90: 1982-01-01 | D90: 6.6 | E90: 35 | F90: AL | G90: XLPE/PVC | H90: 1 | I90: 257.7625005
A91: 11BE06 KARAMA 1 | B91: HCA-105564 | C91: 1982-01-01 | D91: 6.6 | E91: 35 | F91: AL | G91: XLPE/PVC | H91: 1 | I91: 284.1769721
A92: 11BE06 KARAMA 1 | B92: HCA-105595 | C92: 1982-01-01 | D92: 6.6 | E92: 35 | F92: AL | G92: XLPE/PVC | H92: 1 | I92: 285.9715803
A93: 11BE06 KARAMA 1 | B93: HCA-105412 | C93: 1982-01-01 | D93: 6.6 | E93: 35 | F93: AL | G93: XLPE/PVC | H93: 1 | I93: 290.991308
A94: 11BE06 KARAMA 1 | B94: HCA-105635 | C94: 1982-01-01 | D94: 6.6 | E94: 35 | F94: AL | G94: XLPE/PVC | H94: 1 | I94: 292.3962451
A95: 11BE06 KARAMA 1 | B95: HCA-105280 | C95: 1982-01-01 | D95: 6.6 | E95: 35 | F95: AL | G95: XLPE/PVC | H95: 1 | I95: 295.3164931
A96: 11BE06 KARAMA 1 | B96: HCA-105269 | C96: 1982-01-01 | D96: 6.6 | E96: 35 | F96: AL | G96: XLPE/PVC | H96: 1 | I96: 304.2419579
A97: 11BE06 KARAMA 1 | B97: HCA-105596 | C97: 1982-01-01 | D97: 6.6 | E97: 35 | F97: AL | G97: XLPE/PVC | H97: 1 | I97: 307.7842361
A98: 11BE06 KARAMA 1 | B98: HCA-105277 | C98: 1982-01-01 | D98: 6.6 | E98: 35 | F98: AL | G98: XLPE/PVC | H98: 1 | I98: 336.4077239
A99: 11BE06 KARAMA 1 | B99: HCA-105296 | C99: 1982-01-01 | D99: 6.6 | E99: 35 | F99: AL | G99: XLPE/PVC | H99: 1 | I99: 350.1658948
A100: 11BE06 KARAMA 1 | B100: HCA-105574 | C100: 1982-01-01 | D100: 11 | E100: 240 | F100: AL | G100: XLPE/PVC | I100: 350.425586
A101: 11BE06 KARAMA 1 | B101: HCA-105620 | C101: 1982-01-01 | D101: 6.6 | E101: 35 | F101: AL | G101: XLPE/PVC | H101: 1 | I101: 384.0126737
A102: 11BE06 KARAMA 1 | B102: HCA-111557 | C102: 1980-01-01 | D102: 11 | E102: 400 | F102: AL | G102: XLPE/PVC | I102: 414.46
A103: 11BE06 KARAMA 1 | B103: HCA-105548 | C103: 1982-01-01 | D103: 6.6 | E103: 35 | F103: AL | G103: XLPE/PVC | H103: 1 | I103: 415.5200055
A104: 11BE06 KARAMA 1 | B104: HCA-105622 | C104: 1982-01-01 | D104: 6.6 | E104: 35 | F104: AL | G104: XLPE/PVC | H104: 1 | I104: 415.9505855
A105: 11BE06 KARAMA 1 | B105: HCA-105413 | C105: 1982-01-01 | D105: 6.6 | E105: 35 | F105: AL | G105: XLPE/PVC | H105: 1 | I105: 416.0969978
A106: 11BE06 KARAMA 1 | B106: HCA-105544 | C106: 1982-01-01 | D106: 6.6 | E106: 35 | F106: AL | G106: XLPE/PVC | H106: 1 | I106: 422.1655292
A107: 11BE06 KARAMA 1 | B107: HCA-105618 | C107: 1982-01-01 | D107: 6.6 | E107: 240 | F107: AL | G107: XLPE/PVC | H107: 1 | I107: 552.6422595
A108: 11BE06 KARAMA 1 | B108: HCA-106068 | C108: 1975-01-01 | D108: 11 | E108: 400 | F108: AL | G108: XLPE/PVC | I108: 570.0391916
A109: 11BE06 KARAMA 1 | B109: HCA-105567 | C109: 1982-01-01 | D109: 11 | E109: 400 | F109: AL | G109: XLPE/PVC | I109: 584.3305767
A110: 11BE06 KARAMA 1 | B110: HCA-105589 | C110: 1982-01-01 | D110: 11 | E110: 240 | F110: AL | G110: XLPE/PVC | H110: 1 | I110: 590.7789986
A111: 11BE06 KARAMA 1 | B111: HCA-105550 | C111: 1982-01-01 | D111: 6.6 | E111: 35 | F111: AL | G111: XLPE/PVC | H111: 1 | I111: 771.1587828
A112: 11BE06 KARAMA 1 | B112: HCA-105568 | C112: 1982-01-01 | D112: 6.6 | E112: 400 | F112: AL | G112: XLPE/PVC | I112: 850.55
A113: 11BE06 KARAMA 1 | B113: HCA-105575 | C113: 1982-01-01 | D113: 6.6 | E113: 35 | F113: AL | G113: XLPE/PVC | H113: 1 | I113: 927.396261
A114: 11BE06 KARAMA 1 | B114: HCA-105607 | C114: 1982-01-01 | D114: 6.6 | E114: 400 | F114: AL | G114: XLPE/PVC | I114: 934.38
A115: 11BE06 KARAMA 1 | B115: HCA-106070 | C115: 1975-01-01 | D115: 11 | E115: 400 | F115: AL | G115: XLPE/PVC | I115: 1359.503782
A116: 11BE06 KARAMA 1 | B116: HCA-105604 | C116: 1982-01-01 | D116: 11 | E116: 240 | F116: AL | G116: XLPE/PVC | I116: 1803.902918
A117: 11BE10 KARAMA 2 | B117: HCA-107997 | C117: 1982-01-01 | D117: 11 | E117: 95 | F117: AL | G117: XLPE/NYL/PVC | H117: 1 | I117: 1.02
A118: 11BE10 KARAMA 2 | B118: HCA-108128 | C118: 1982-01-01 | D118: 6.6 | E118: 95 | F118: AL | G118: XLPE/PVC | I118: 1.42
A119: 11BE10 KARAMA 2 | B119: HCA-115225 | C119: 1982-01-01 | D119: 6.6 | E119: 95 | F119: AL | G119: XLPE/PVC | I119: 1.49
A120: 11BE10 KARAMA 2 | B120: HCA-108157 | C120: 1982-01-01 | D120: 6.6 | E120: 240 | F120: AL | G120: XLPE/PVC | I120: 1.53
A121: 11BE10 KARAMA 2 | B121: HCA-108154 | C121: 1982-01-01 | D121: 6.6 | E121: 240 | F121: AL | G121: XLPE/PVC | I121: 1.53
A122: 11BE10 KARAMA 2 | B122: HCA-108153 | C122: 1982-01-01 | D122: 11 | E122: 240 | F122: AL | G122: XLPE/PVC | I122: 1.53
A123: 11BE10 KARAMA 2 | B123: HCA-108150 | C123: 1982-01-01 | D123: 11 | E123: 240 | F123: AL | G123: XLPE/PVC | I123: 1.53
A124: 11BE10 KARAMA 2 | B124: HCA-108139 | C124: 1982-01-01 | D124: 6.6 | E124: 95 | F124: AL | G124: XLPE/PVC | I124: 1.53
A125: 11BE10 KARAMA 2 | B125: HCA-108137 | C125: 1982-01-01 | D125: 6.6 | E125: 95 | F125: AL | G125: XLPE/PVC | I125: 1.53
A126: 11BE10 KARAMA 2 | B126: HCA-108135 | C126: 1982-01-01 | D126: 6.6 | E126: 95 | F126: AL | G126: XLPE/PVC | I126: 1.53
A127: 11BE10 KARAMA 2 | B127: HCA-108114 | C127: 1982-01-01 | D127: 6.6 | E127: 95 | F127: AL | G127: XLPE/PVC | I127: 1.53
A128: 11BE10 KARAMA 2 | B128: HCA-108113 | C128: 1982-01-01 | D128: 6.6 | E128: 95 | F128: AL | G128: XLPE/PVC | I128: 1.53
A129: 11BE10 KARAMA 2 | B129: HCA-108112 | C129: 1982-01-01 | D129: 6.6 | E129: 95 | F129: AL | G129: XLPE/PVC | I129: 1.53
A130: 11BE10 KARAMA 2 | B130: HCA-108111 | C130: 1982-01-01 | D130: 6.6 | E130: 95 | F130: AL | G130: XLPE/PVC | I130: 1.53
A131: 11BE10 KARAMA 2 | B131: HCA-108107 | C131: 1982-01-01 | D131: 6.6 | E131: 95 | F131: AL | G131: XLPE/PVC | I131: 1.53
A132: 11BE10 KARAMA 2 | B132: HCA-108106 | C132: 1982-01-01 | D132: 6.6 | E132: 95 | F132: AL | G132: XLPE/PVC | I132: 1.53
A133: 11BE10 KARAMA 2 | B133: HCA-108105 | C133: 1982-01-01 | D133: 6.6 | E133: 95 | F133: AL | G133: XLPE/PVC | I133: 1.53
A134: 11BE10 KARAMA 2 | B134: HCA-108181 | C134: 1982-01-01 | D134: 6.6 | E134: 95 | F134: AL | G134: XLPE/PVC | I134: 1.53
A135: 11BE10 KARAMA 2 | B135: HCA-108132 | C135: 1982-01-01 | D135: 6.6 | E135: 95 | F135: AL | G135: XLPE/PVC | I135: 1.54
A136: 11BE10 KARAMA 2 | B136: HCA-108147 | C136: 1982-01-01 | D136: 6.6 | E136: 95 | F136: AL | G136: XLPE/PVC | I136: 1.57
A137: 11BE10 KARAMA 2 | B137: HCA-113850 | C137: 1982-01-01 | D137: 6.6 | E137: 95 | F137: AL | G137: XLPE/PVC | I137: 1.86
A138: 11BE10 KARAMA 2 | B138: HCA-108127 | C138: 1982-01-01 | D138: 6.6 | E138: 95 | F138: AL | G138: XLPE/PVC | I138: 2.08
A139: 11BE10 KARAMA 2 | B139: HCA-108126 | C139: 1982-01-01 | D139: 6.6 | E139: 95 | F139: AL | G139: XLPE/PVC | I139: 2.09
A140: 11BE10 KARAMA 2 | B140: HCA-108149 | C140: 1982-01-01 | D140: 6.6 | E140: 95 | F140: AL | G140: XLPE/PVC | I140: 2.19
A141: 11BE10 KARAMA 2 | B141: HCA-108148 | C141: 1982-01-01 | D141: 6.6 | E141: 95 | F141: AL | G141: XLPE/PVC | I141: 2.19
A142: 11BE10 KARAMA 2 | B142: HCA-108129 | C142: 1982-01-01 | D142: 6.6 | E142: 95 | F142: AL | G142: XLPE/PVC | I142: 2.36
A143: 11BE10 KARAMA 2 | B143: HCA-108119 | C143: 1982-01-01 | D143: 6.6 | E143: 95 | F143: AL | G143: XLPE/PVC | I143: 2.37
A144: 11BE10 KARAMA 2 | B144: HCA-108121 | C144: 1982-01-01 | D144: 6.6 | E144: 95 | F144: AL | G144: XLPE/PVC | I144: 2.86
A145: 11BE10 KARAMA 2 | B145: HCA-108120 | C145: 1982-01-01 | D145: 6.6 | E145: 95 | F145: AL | G145: XLPE/PVC | I145: 2.95
A146: 11BE10 KARAMA 2 | B146: HCA-108156 | C146: 1982-01-01 | D146: 11 | E146: 240 | F146: AL | G146: XLPE/PVC | I146: 3.06
A147: 11BE10 KARAMA 2 | B147: HCA-108155 | C147: 1982-01-01 | D147: 6.6 | E147: 240 | F147: AL | G147: XLPE/PVC | I147: 3.06
A148: 11BE10 KARAMA 2 | B148: HCA-108151 | C148: 1982-01-01 | D148: 11 | E148: 240 | F148: AL | G148: XLPE/PVC | I148: 3.06
A149: 11BE10 KARAMA 2 | B149: HCA-108140 | C149: 1982-01-01 | D149: 6.6 | E149: 95 | F149: AL | G149: XLPE/PVC | I149: 3.06
A150: 11BE10 KARAMA 2 | B150: HCA-108138 | C150: 1982-01-01 | D150: 6.6 | E150: 95 | F150: AL | G150: XLPE/PVC | I150: 3.06
A151: 11BE10 KARAMA 2 | B151: HCA-108134 | C151: 1982-01-01 | D151: 6.6 | E151: 95 | F151: AL | G151: XLPE/PVC | I151: 3.06
A152: 11BE10 KARAMA 2 | B152: HCA-108133 | C152: 1982-01-01 | D152: 6.6 | E152: 95 | F152: AL | G152: XLPE/PVC | I152: 3.06
A153: 11BE10 KARAMA 2 | B153: HCA-108115 | C153: 1982-01-01 | D153: 6.6 | E153: 95 | F153: AL | G153: XLPE/PVC | I153: 3.06
A154: 11BE10 KARAMA 2 | B154: HCA-108110 | C154: 1982-01-01 | D154: 6.6 | E154: 95 | F154: AL | G154: XLPE/PVC | I154: 3.06
A155: 11BE10 KARAMA 2 | B155: HCA-108109 | C155: 1982-01-01 | D155: 6.6 | E155: 95 | F155: AL | G155: XLPE/PVC | I155: 3.06
A156: 11BE10 KARAMA 2 | B156: HCA-108104 | C156: 1982-01-01 | D156: 6.6 | E156: 95 | F156: AL | G156: XLPE/PVC | I156: 3.06
A157: 11BE10 KARAMA 2 | B157: HCA-108103 | C157: 1982-01-01 | D157: 6.6 | E157: 95 | F157: AL | G157: XLPE/PVC | I157: 3.06
A158: 11BE10 KARAMA 2 | B158: HCA-108152 | C158: 1982-01-01 | D158: 11 | E158: 240 | F158: AL | G158: XLPE/PVC | I158: 3.06
A159: 11BE10 KARAMA 2 | B159: HCA-108089 | C159: 1982-01-01 | D159: 6.6 | E159: 95 | F159: AL | G159: XLPE/PVC | I159: 3.1
A160: 11BE10 KARAMA 2 | B160: HCA-105535 | C160: 1982-01-01 | D160: 6.6 | E160: 35 | F160: AL | G160: XLPE/PVC | I160: 5.5
A161: 11BE10 KARAMA 2 | B161: HCA-108141 | C161: 1982-01-01 | D161: 6.6 | E161: 95 | F161: AL | G161: XLPE/PVC | I161: 6.12
A162: 11BE10 KARAMA 2 | B162: HCA-108122 | C162: 1982-01-01 | D162: 6.6 | E162: 95 | F162: AL | G162: XLPE/PVC | I162: 7.91
A163: 11BE10 KARAMA 2 | B163: HCA-108173 | C163: 1982-01-01 | D163: 6.6 | E163: 95 | F163: AL | G163: XLPE/PVC | H163: 1 | I163: 9.46
A164: 11BE10 KARAMA 2 | B164: HCA-105600 | C164: 1982-01-01 | D164: 6.6 | E164: 35 | F164: AL | G164: XLPE/PVC | I164: 9.89
A165: 11BE10 KARAMA 2 | B165: HCA-108144 | C165: 1982-01-01 | D165: 6.6 | E165: 95 | F165: AL | G165: XLPE/PVC | I165: 10.15
A166: 11BE10 KARAMA 2 | B166: HCA-108130 | C166: 1982-01-01 | D166: 6.6 | E166: 95 | F166: AL | G166: XLPE/PVC | I166: 12.71
A167: 11BE10 KARAMA 2 | B167: HCA-108168 | C167: 1982-01-01 | D167: 11 | E167: 35 | F167: AL | G167: XLPE/PVC | I167: 14.39
A168: 11BE10 KARAMA 2 | B168: HCA-105512 | C168: 1982-01-01 | D168: 6.6 | E168: 35 | F168: AL | G168: XLPE/PVC | I168: 16.29
A169: 11BE10 KARAMA 2 | B169: HCA-108066 | C169: 1982-01-01 | D169: 11 | E169: 400 | F169: AL | G169: XLPE/PVC | I169: 17.56
A170: 11BE10 KARAMA 2 | B170: HCA-105539 | C170: 1982-01-01 | D170: 6.6 | E170: 35 | F170: AL | G170: XLPE/PVC | I170: 19.04
A171: 11BE10 KARAMA 2 | B171: HCA-105416 | C171: 1982-01-01 | D171: 6.6 | E171: 240 | F171: AL | G171: XLPE/PVC | H171: 1 | I171: 27.83
A172: 11BE10 KARAMA 2 | B172: HCA-113849 | C172: 1982-01-01 | D172: 11 | E172: 95 | F172: AL | G172: XLPE/PVC | I172: 33.99
A173: 11BE10 KARAMA 2 | B173: HCA-105579 | C173: 1982-01-01 | D173: 6.6 | E173: 95 | F173: AL | G173: XLPE/PVC | I173: 35.19
A174: 11BE10 KARAMA 2 | B174: HCA-108162 | C174: 1982-01-01 | D174: 11 | E174: 35 | F174: AL | G174: XLPE/PVC | H174: 1 | I174: 43.52
A175: 11BE10 KARAMA 2 | B175: HCA-105341 | C175: 1982-01-01 | D175: 6.6 | E175: 35 | F175: AL | G175: XLPE/PVC | H175: 1 | I175: 47.99
A176: 11BE10 KARAMA 2 | B176: HCA-105638 | C176: 1982-01-01 | D176: 6.6 | E176: 35 | F176: AL | G176: XLPE/PVC | H176: 1 | I176: 51.6
A177: 11BE10 KARAMA 2 | B177: HCA-105632 | C177: 1982-01-01 | D177: 6.6 | E177: 35 | F177: AL | G177: XLPE/PVC | H177: 1 | I177: 51.85
A178: 11BE10 KARAMA 2 | B178: HCA-108015 | C178: 1982-01-01 | D178: 6.6 | E178: 95 | F178: AL | G178: XLPE/PVC | H178: 1 | I178: 52.87
A179: 11BE10 KARAMA 2 | B179: HCA-108054 | C179: 1982-01-01 | D179: 6.6 | E179: 95 | F179: AL | G179: XLPE/PVC | H179: 1 | I179: 57.48
A180: 11BE10 KARAMA 2 | B180: HCA-105318 | C180: 1982-01-01 | D180: 6.6 | E180: 35 | F180: AL | G180: XLPE/PVC | H180: 1 | I180: 59.6
A181: 11BE10 KARAMA 2 | B181: HCA-105342 | C181: 1982-01-01 | D181: 6.6 | E181: 35 | F181: AL | G181: XLPE/PVC | H181: 1 | I181: 72.96
A182: 11BE10 KARAMA 2 | B182: HCA-108058 | C182: 1982-01-01 | D182: 6.6 | E182: 95 | F182: AL | G182: XLPE/PVC | H182: 1 | I182: 81.44
A183: 11BE10 KARAMA 2 | B183: HCA-108016 | C183: 1982-01-01 | D183: 6.6 | E183: 95 | F183: AL | G183: XLPE/PVC | H183: 1 | I183: 81.47
A184: 11BE10 KARAMA 2 | B184: HCA-105359 | C184: 1982-01-01 | D184: 6.6 | E184: 35 | F184: AL | G184: XLPE/PVC | H184: 1 | I184: 83.48
A185: 11BE10 KARAMA 2 | B185: HCA-105339 | C185: 1982-01-01 | D185: 6.6 | E185: 35 | F185: AL | G185: XLPE/PVC | H185: 1 | I185: 84.72
A186: 11BE10 KARAMA 2 | B186: HCA-105324 | C186: 1982-01-01 | D186: 6.6 | E186: 35 | F186: AL | G186: XLPE/PVC | H186: 1 | I186: 86.36
A187: 11BE10 KARAMA 2 | B187: HCA-108175 | C187: 1982-01-01 | D187: 6.6 | E187: 95 | F187: AL | G187: XLPE/PVC | H187: 1 | I187: 86.4
A188: 11BE10 KARAMA 2 | B188: HCA-108169 | C188: 1982-01-01 | D188: 11 | E188: 35 | F188: AL | G188: XLPE/PVC | H188: 1 | I188: 86.78
A189: 11BE10 KARAMA 2 | B189: HCA-105627 | C189: 1982-01-01 | D189: 6.6 | E189: 35 | F189: AL | G189: XLPE/PVC | H189: 1 | I189: 90.07
A190: 11BE10 KARAMA 2 | B190: HCA-105320 | C190: 1982-01-01 | D190: 6.6 | E190: 35 | F190: AL | G190: XLPE/PVC | H190: 1 | I190: 90.2
A191: 11BE10 KARAMA 2 | B191: HCA-105340 | C191: 1982-01-01 | D191: 6.6 | E191: 35 | F191: AL | G191: XLPE/PVC | H191: 1 | I191: 91.54
A192: 11BE10 KARAMA 2 | B192: HCA-105566 | C192: 1982-01-01 | D192: 11 | E192: 240 | F192: AL | G192: XLPE/PVC | H192: 1 | I192: 94.17
A193: 11BE10 KARAMA 2 | B193: HCA-105593 | C193: 1982-01-01 | D193: 6.6 | E193: 35 | F193: AL | G193: XLPE/PVC | H193: 1 | I193: 95.48
A194: 11BE10 KARAMA 2 | B194: HCA-105306 | C194: 1982-01-01 | D194: 6.6 | E194: 35 | F194: AL | G194: XLPE/PVC | H194: 1 | I194: 95.96
A195: 11BE10 KARAMA 2 | B195: HCA-108008 | C195: 1982-01-01 | D195: 6.6 | E195: 95 | F195: AL | G195: XLPE/PVC | H195: 1 | I195: 96.09
A196: 11BE10 KARAMA 2 | B196: HCA-105559 | C196: 1982-01-01 | D196: 6.6 | E196: 35 | F196: AL | G196: XLPE/PVC | H196: 1 | I196: 97.12
A197: 11BE10 KARAMA 2 | B197: HCA-108019 | C197: 1982-01-01 | D197: 6.6 | E197: 95 | F197: AL | G197: XLPE/PVC | H197: 1 | I197: 98.7
A198: 11BE10 KARAMA 2 | B198: HCA-105301 | C198: 1982-01-01 | D198: 6.6 | E198: 35 | F198: AL | G198: XLPE/PVC | H198: 1 | I198: 99.16
A199: 11BE10 KARAMA 2 | B199: HCA-105331 | C199: 1982-01-01 | D199: 6.6 | E199: 35 | F199: AL | G199: XLPE/PVC | H199: 1 | I199: 100
A200: 11BE10 KARAMA 2 | B200: HCA-105325 | C200: 1982-01-01 | D200: 6.6 | E200: 35 | F200: AL | G200: XLPE/PVC | H200: 1 | I200: 101.57
... 652 more rows
